Workbook

Sheet ЦАОП
A1: № этапа | B1: Цена этапа | C1: № акта | E1: Дата акта i | F1: Сумма акта 1 | G1: Остаток по этапу | H1: дата получения заказчиком акта приемки выполненных работ | I1: Срок по контракту | J1: Рабочий +1 | K1: Просрочено дней | L1: Неустойка по 1му акту | M1: Ставка по актам | N1: 2020-11-25 | O1: На остаток/ период просрочки | P1: Ставка по просрочке, новый вариант И(A2<=A3;O2>0;H2<>0) | Q1: Сумма | R1: Праздники | T1: Разность по столбцу O между новой и старой версиями
A2: 1 | B2: 53547 | C2: 1 | D2: от | E2: 2020-05-15 | F2: 53547 | G2: =ROUND(IF(B2>0,B2-F2,G1-F2),2) -> 0 | H2: 2020-05-22 | I2: 2020-01-31 | J2: =WORKDAY.INTL(I2,1,1,$R$2:$R$88) -> 2020-02-03 | K2: =IF(AND(H2>J2,B2>0),H2-J2+1,0) -> 110 | L2: =IF(B2>0,ROUND((B2*K2*1/300*M2),2),0) -> 1079.86 | M2: =IF(K2=0,0,Get_KeyRate(H2)) -> 0.055 | N2: =IF(AND(E2=0,F2=0,H2=0),"+","") ->  | O2: =IF(N2="+",IF(I2>$N$1,"0",IF(N2="+",VALUE($N$1)-VALUE(J2),$N$1-H2))+IF(G2=0,0,IF(AND(A2>=A3,H2>0,H3-H2),H3-H2)),IF(I2>$N$1,"0",IF(G2=0,0,IF(AND(A2>=A3,H2>0),H3-H2,IF(AND(A2<>A3,B2="",B3<>0),VALUE($N$1)-VALUE(H2),IF(A2<>A3,H2-J2,IF(N2="+",VALUE($N$1)-VALUE(J2),$N$1-H2))))))) -> 0 | P2: =IF(G2=0,0,IF(AND(A2<=A3,O2>0,H2<>0),Get_KeyRate(H3),Get_KeyRate($N$1))) -> 0 | Q2: =IF(G2=0,0,IF(O2>0,ROUND((G2*O2*1/300*P2),2),0)) -> 0 | R2: 2019-01-01 | S2: каникулы | T2: =O2-#REF! -> 
A3: 2 | B3: 629125 | C3: 2/1 | D3: от | E3: 2020-05-15 | F3: 619378 | G3: 9747 | H3: 2020-05-22 | I3: 2020-02-29 | J3: =WORKDAY.INTL(I3,1,1,$R$2:$R$88) -> 2020-03-02 | K3: =IF(AND(H3>J3,B3>0),H3-J3+1,0) -> 82 | L3: =IF(B3>0,ROUND((B3*K3*1/300*M3),2),0) -> 9457.85 | M3: =IF(K3=0,0,Get_KeyRate(H3)) -> 0.055 | N3: =IF(AND(E3=0,F3=0,H3=0),"+","") ->  | O3: =IF(N3="+",IF(I3>$N$1,"0",IF(N3="+",VALUE($N$1)-VALUE(J3),$N$1-H3))+IF(G3=0,0,IF(AND(A3>=A4,H3>0,H4-H3),H4-H3)),IF(I3>$N$1,"0",IF(G3=0,0,IF(AND(A3>=A4,H3>0),H4-H3,IF(AND(A3<>A4,B3="",B4<>0),VALUE($N$1)-VALUE(H3),IF(A3<>A4,H3-J3,IF(N3="+",VALUE($N$1)-VALUE(J3),$N$1-H3))))))) -> 81 | P3: =IF(G3=0,0,IF(AND(A3<=A4,O3>0,H3<>0),Get_KeyRate(H4),Get_KeyRate($N$1))) -> 0.055 | Q3: =IF(G3=0,0,IF(O3>0,ROUND((G3*O3*1/300*P3),2),0)) -> 144.74 | R3: 2019-01-02 | T3: =O3-#REF! -> 
A4: 3 | B4: 82910 | C4: 3 | D4: от | E4: 2020-05-15 | F4: 82907 | G4: 3 | H4: 2020-05-22 | I4: 2020-02-29 | J4: =WORKDAY.INTL(I4,1,1,$R$2:$R$88) -> 2020-03-02 | K4: =IF(AND(H4>J4,B4>0),H4-J4+1,0) -> 82 | L4: =IF(B4>0,ROUND((B4*K4*1/300*M4),2),0) -> 1246.41 | M4: =IF(K4=0,0,Get_KeyRate(H4)) -> 0.055 | N4: =IF(AND(E4=0,F4=0,H4=0),"+","") ->  | O4: =IF(N4="+",IF(I4>$N$1,"0",IF(N4="+",VALUE($N$1)-VALUE(J4),$N$1-H4))+IF(G4=0,0,IF(AND(A4>=A5,H4>0,H5-H4),H5-H4)),IF(I4>$N$1,"0",IF(G4=0,0,IF(AND(A4>=A5,H4>0),H5-H4,IF(AND(A4<>A5,B4="",B5<>0),VALUE($N$1)-VALUE(H4),IF(A4<>A5,H4-J4,IF(N4="+",VALUE($N$1)-VALUE(J4),$N$1-H4))))))) -> 81 | P4: =IF(G4=0,0,IF(AND(A4<=A5,O4>0,H4<>0),Get_KeyRate(H5),Get_KeyRate($N$1))) -> 0.0425 | Q4: =IF(G4=0,0,IF(O4>0,ROUND((G4*O4*1/300*P4),2),0)) -> 0.03 | R4: 2019-01-03 | T4: =O4-#REF! -> 
A5: 4 | B5: 849598 | E5: 0 | F5: 0 | G5: 849598 | H5: 0 | I5: 2020-02-29 | J5: =WORKDAY.INTL(I5,1,1,$R$2:$R$88) -> 2020-03-02 | K5: =IF(AND(H5>J5,B5>0),H5-J5+1,0) -> 0 | L5: =IF(B5>0,ROUND((B5*K5*1/300*M5),2),0) -> 0 | M5: =IF(K5=0,0,Get_KeyRate(H5)) -> 0 | N5: =IF(OR(E5=0,F5=0,H5=0),"+","") -> + | O5: =IF(N5="+",IF(I5>$N$1,"0",IF(N5="+",VALUE($N$1)-VALUE(J5),$N$1-H5))+IF(G5=0,0,IF(AND(A5>=A6,H5>0,H6-H5),H6-H5)),IF(I5>$N$1,"0",IF(G5=0,0,IF(AND(A5>=A6,H5>0),H6-H5,IF(AND(A5<>A6,B5="",B6<>0),VALUE($N$1)-VALUE(H5),IF(A5<>A6,H5-J5,IF(N5="+",VALUE($N$1)-VALUE(J5),$N$1-H5))))))) -> 268 | P5: =IF(G5=0,0,IF(AND(A5<=A6,O5>0,H5<>0),Get_KeyRate(H6),Get_KeyRate($N$1))) -> 0.0425 | Q5: =IF(G5=0,0,IF(O5>0,ROUND((G5*O5*1/300*P5),2),0)) -> 32256.4 | R5: 2019-01-04 | T5: =O5-#REF! -> 
A6: 5 | B6: 2262215 | C6: 5/1 | D6: от | E6: 2020-05-15 | F6: 1543724 | G6: 718491 | H6: 2019-12-20 | I6: 2019-12-24 | J6: =WORKDAY.INTL(I6,1,1,$R$2:$R$88) -> 2019-12-25 | K6: =IF(AND(H6>J6,B6>0),H6-J6+1,0) -> 0 | L6: =IF(B6>0,ROUND((B6*K6*1/300*M6),2),0) -> 0 | M6: =IF(K6=0,0,Get_KeyRate(H6)) -> 0 | N6: =IF(OR(E6=0,F6=0,H6=0),"+","") ->  | O6: =IF(N6="+",IF(I6>$N$1,"0",IF(N6="+",VALUE($N$1)-VALUE(J6),$N$1-H6))+IF(G6=0,0,IF(AND(A6>=A7,H6>0,H7-H6),H7-H6)),IF(I6>$N$1,"0",IF(G6=0,0,IF(AND(A6>=A7,H6>0),H7-H6,IF(AND(A6<>A7,B6="",B7<>0),VALUE($N$1)-VALUE(H6),IF(A6<>A7,H6-J6,IF(N6="+",VALUE($N$1)-VALUE(J6),$N$1-H6))))))) -> 0 | P6: =IF(G6=0,0,IF(AND(A6<=A7,O6>0,H6<>0),Get_KeyRate(H7),Get_KeyRate($N$1))) -> 0.0425 | Q6: =IF(G6=0,0,IF(O6>0,ROUND((G6*O6*1/300*P6),2),0)) -> 0 | R6: 2019-01-05 | T6: =O6-#REF! -> 
A7: 5 | C7: 5/2 | D7: от | E7: 2020-06-11 | F7: 358923.6 | G7: 359567.4 | H7: 2019-12-20 | I7: 2019-12-24 | J7: =WORKDAY.INTL(I7,1,1,$R$2:$R$88) -> 2019-12-25 | K7: =IF(AND(H7>J7,B7>0),H7-J7+1,0) -> 0 | L7: =IF(B7>0,ROUND((B7*K7*1/300*M7),2),0) -> 0 | M7: =IF(K7=0,0,Get_KeyRate(H7)) -> 0 | N7: =IF(OR(E7=0,F7=0,H7=0),"+","") ->  | O7: =IF(N7="+",IF(I7>$N$1,"0",IF(N7="+",VALUE($N$1)-VALUE(J7),$N$1-H7))+IF(G7=0,0,IF(AND(A7>=A8,H7>0,H8-H7),H8-H7)),IF(I7>$N$1,"0",IF(G7=0,0,IF(AND(A7>=A8,H7>0),H8-H7,IF(AND(A7<>A8,B7="",B8<>0),VALUE($N$1)-VALUE(H7),IF(A7<>A8,H7-J7,IF(N7="+",VALUE($N$1)-VALUE(J7),$N$1-H7))))))) -> 329 | P7: =IF(G7=0,0,IF(AND(A7<=A8,O7>0,H7<>0),Get_KeyRate(H8),Get_KeyRate($N$1))) -> 0.0425 | Q7: =IF(G7=0,0,IF(O7>0,ROUND((G7*O7*1/300*P7),2),0)) -> 16758.84 | R7: 2019-01-06 | T7: =O7-#REF! -> 
A8: 5 | C8: 5/3 | D8: от | E8: 2020-11-13 | F8: 194773.98 | G8: 164793.42 | H8: 2020-11-13 | I8: 2019-12-24 | J8: =WORKDAY.INTL(I8,1,1,$R$2:$R$88) -> 2019-12-25 | K8: =IF(AND(H8>J8,B8>0),H8-J8+1,0) -> 0 | L8: =IF(B8>0,ROUND((B8*K8*1/300*M8),2),0) -> 0 | M8: =IF(K8=0,0,Get_KeyRate(H8)) -> 0 | N8: =IF(AND(E8=0,F8=0,H8=0),"+","") ->  | O8: =IF(N8="+",IF(I8>$N$1,"0",IF(N8="+",VALUE($N$1)-VALUE(J8),$N$1-H8))+IF(G8=0,0,IF(AND(A8>=A9,H8>0,H9-H8),H9-H8)),IF(I8>$N$1,"0",IF(G8=0,0,IF(AND(A8>=A9,H8>0),H9-H8,IF(AND(A8<>A9,B8="",B9<>0),VALUE($N$1)-VALUE(H8),IF(A8<>A9,H8-J8,IF(N8="+",VALUE($N$1)-VALUE(J8),$N$1-H8))))))) -> 12 | P8: =IF(G8=0,0,IF(AND(A8<=A9,O8>0,H8<>0),Get_KeyRate(H9),Get_KeyRate($N$1))) -> 0.055 | Q8: =IF(G8=0,0,IF(O8>0,ROUND((G8*O8*1/300*P8),2),0)) -> 362.55 | T8: =O8-#REF! -> 
A9: 6 | B9: 4264318 | C9: 6 | D9: от | E9: 2020-05-15 | F9: 4264318 | G9: =ROUND(IF(B9>0,B9-F9,G7-F9),2) -> 0 | H9: 2020-05-22 | I9: 2020-03-31 | J9: =WORKDAY.INTL(I9,1,1,$R$2:$R$88) -> 2020-04-01 | K9: =IF(AND(H9>J9,B9>0),H9-J9+1,0) -> 52 | L9: =IF(B9>0,ROUND((B9*K9*1/300*M9),2),0) -> 40653.16 | M9: =IF(K9=0,0,Get_KeyRate(H9)) -> 0.055 | N9: =IF(OR(E9=0,F9=0,H9=0),"+","") ->  | O9: =IF(N9="+",IF(I9>$N$1,"0",IF(N9="+",VALUE($N$1)-VALUE(J9),$N$1-H9))+IF(G9=0,0,IF(AND(A9>=A10,H9>0,H10-H9),H10-H9)),IF(I9>$N$1,"0",IF(G9=0,0,IF(AND(A9>=A10,H9>0),H10-H9,IF(AND(A9<>A10,B9="",B10<>0),VALUE($N$1)-VALUE(H9),IF(A9<>A10,H9-J9,IF(N9="+",VALUE($N$1)-VALUE(J9),$N$1-H9))))))) -> 0 | P9: =IF(G9=0,0,IF(AND(A9<=A10,O9>0,H9<>0),Get_KeyRate(H10),Get_KeyRate($N$1))) -> 0 | Q9: =IF(G9=0,0,IF(O9>0,ROUND((G9*O9*1/300*P9),2),0)) -> 0 | R9: 2019-01-07 | T9: =O9-#REF! -> 
A10: 7 | B10: 447601 | C10: 7/1 | D10: от | E10: 2020-09-25 | F10: 175416 | G10: 272185 | H10: 2020-09-25 | I10: 2020-04-30 | J10: =WORKDAY.INTL(I10,1,1,$R$2:$R$88) -> 2020-05-06 | K10: =IF(AND(H10>J10,B10>0),H10-J10+1,0) -> 143 | L10: =IF(B10>0,ROUND((B10*K10*1/300*M10),2),0) -> 9067.65 | M10: =IF(K10=0,0,Get_KeyRate(H10)) -> 0.0425 | N10: =IF(OR(E10=0,F10=0,H10=0),"+","") ->  | O10: =IF(N10="+",IF(I10>$N$1,"0",IF(N10="+",VALUE($N$1)-VALUE(J10),$N$1-H10))+IF(G10=0,0,IF(AND(A10>=A11,H10>0,H11-H10),H11-H10)),IF(I10>$N$1,"0",IF(G10=0,0,IF(AND(A10>=A11,H10>0),H11-H10,IF(AND(A10<>A11,B10="",B11<>0),VALUE($N$1)-VALUE(H10),IF(A10<>A11,H10-J10,IF(N10="+",VALUE($N$1)-VALUE(J10),$N$1-H10))))))) -> 42 | P10: =IF(G10=0,0,IF(AND(A10<=A11,O10>0,H10<>0),Get_KeyRate(H11),Get_KeyRate($N$1))) -> 0.0425 | Q10: =IF(G10=0,0,IF(O10>0,ROUND((G10*O10*1/300*P10),2),0)) -> 1619.5 | R10: 2019-01-08 | T10: =O10-#REF! -> 
A11: 7 | C11: 7/2 | D11: от | E11: 2020-11-06 | F11: 224442.44 | G11: 47742.56 | H11: 2020-11-06 | I11: 2020-04-30 | J11: =WORKDAY.INTL(I11,1,1,$R$2:$R$88) -> 2020-05-06 | K11: =IF(AND(H11>J11,B11>0),H11-J11+1,0) -> 0 | L11: =IF(B11>0,ROUND((B11*K11*1/300*M11),2),0) -> 0 | M11: =IF(K11=0,0,Get_KeyRate(H11)) -> 0 | N11: =IF(OR(E11=0,F11=0,H11=0),"+","") ->  | O11: =IF(N11="+",IF(I11>$N$1,"0",IF(N11="+",VALUE($N$1)-VALUE(J11),$N$1-H11))+IF(G11=0,0,IF(AND(A11>=A12,H11>0,H12-H11),H12-H11)),IF(I11>$N$1,"0",IF(G11=0,0,IF(AND(A11>=A12,H11>0),H12-H11,IF(AND(A11<>A12,B11="",B12<>0),VALUE($N$1)-VALUE(H11),IF(A11<>A12,H11-J11,IF(N11="+",VALUE($N$1)-VALUE(J11),$N$1-H11))))))) -> 19 | P11: =IF(G11=0,0,IF(AND(A11<=A12,O11>0,H11<>0),Get_KeyRate(H12),Get_KeyRate($N$1))) -> 0.0425 | Q11: =IF(G11=0,0,IF(O11>0,ROUND((G11*O11*1/300*P11),2),0)) -> 128.51 | R11: 2019-02-23 | S11: День защитника отеч. | T11: =O11-#REF! -> 
A12: 8 | B12: 9489 | G12: 9489 | I12: 2020-04-30 | J12: =WORKDAY.INTL(I12,1,1,$R$2:$R$88) -> 2020-05-06 | K12: =IF(AND(H12>J12,B12>0),H12-J12+1,0) -> 0 | L12: =IF(B12>0,ROUND((B12*K12*1/300*M12),2),0) -> 0 | M12: =IF(K12=0,0,Get_KeyRate(H12)) -> 0 | N12: =IF(OR(E12=0,F12=0,H12=0),"+","") -> + | O12: =IF(N12="+",IF(I12>$N$1,"0",IF(N12="+",VALUE($N$1)-VALUE(J12),$N$1-H12))+IF(G12=0,0,IF(AND(A12>=A13,H12>0,H13-H12),H13-H12)),IF(I12>$N$1,"0",IF(G12=0,0,IF(AND(A12>=A13,H12>0),H13-H12,IF(AND(A12<>A13,B12="",B13<>0),VALUE($N$1)-VALUE(H12),IF(A12<>A13,H12-J12,IF(N12="+",VALUE($N$1)-VALUE(J12),$N$1-H12))))))) -> 203 | P12: =IF(G12=0,0,IF(AND(A12<=A13,O12>0,H12<>0),Get_KeyRate(H13),Get_KeyRate($N$1))) -> 0.0425 | Q12: =IF(G12=0,0,IF(O12>0,ROUND((G12*O12*1/300*P12),2),0)) -> 272.89 | R12: 2019-03-08 | S12: Международный женский день | T12: =O12-#REF! -> 
A13: 9 | B13: 3399442 | C13: 9/1 | D13: от | E13: 2020-06-11 | F13: 1674162 | G13: 1725280 | H13: 2020-06-15 | I13: 2020-06-30 | J13: =WORKDAY.INTL(I13,1,1,$R$2:$R$88) -> 2020-07-01 | K13: =IF(AND(H13>J13,B13>0),H13-J13+1,0) -> 0 | L13: =IF(B13>0,ROUND((B13*K13*1/300*M13),2),0) -> 0 | M13: =IF(K13=0,0,Get_KeyRate(H13)) -> 0 | N13: =IF(OR(E13=0,F13=0,H13=0),"+","") ->  | O13: =IF(N13="+",IF(I13>$N$1,"0",IF(N13="+",VALUE($N$1)-VALUE(J13),$N$1-H13))+IF(G13=0,0,IF(AND(A13>=A14,H13>0,H14-H13),H14-H13)),IF(I13>$N$1,"0",IF(G13=0,0,IF(AND(A13>=A14,H13>0),H14-H13,IF(AND(A13<>A14,B13="",B14<>0),VALUE($N$1)-VALUE(H13),IF(A13<>A14,H13-J13,IF(N13="+",VALUE($N$1)-VALUE(J13),$N$1-H13))))))) -> 42 | P13: =IF(G13=0,0,IF(AND(A13<=A14,O13>0,H13<>0),Get_KeyRate(H14),Get_KeyRate($N$1))) -> 0.0425 | Q13: =IF(G13=0,0,IF(O13>0,ROUND((G13*O13*1/300*P13),2),0)) -> 10265.42 | R13: 2019-03-09 | T13: =O13-#REF! -> 
A14: 9 | C14: 9/2 | D14: от | E14: 2020-07-27 | F14: 1222496.4 | G14: 502783.6 | H14: 2020-07-27 | I14: 2020-06-30 | J14: =WORKDAY.INTL(I14,1,1,$R$2:$R$88) -> 2020-07-01 | K14: =IF(AND(H14>J14,B14>0),H14-J14+1,0) -> 0 | L14: =IF(B14>0,ROUND((B14*K14*1/300*M14),2),0) -> 0 | M14: =IF(K14=0,0,Get_KeyRate(H14)) -> 0 | N14: =IF(OR(E14=0,F14=0,H14=0),"+","") ->  | O14: =IF(N14="+",IF(I14>$N$1,"0",IF(N14="+",VALUE($N$1)-VALUE(J14),$N$1-H14))+IF(G14=0,0,IF(AND(A14>=A15,H14>0,H15-H14),H15-H14)),IF(I14>$N$1,"0",IF(G14=0,0,IF(AND(A14>=A15,H14>0),H15-H14,IF(AND(A14<>A15,B14="",B15<>0),VALUE($N$1)-VALUE(H14),IF(A14<>A15,H14-J14,IF(N14="+",VALUE($N$1)-VALUE(J14),$N$1-H14))))))) -> 29 | P14: =IF(G14=0,0,IF(AND(A14<=A15,O14>0,H14<>0),Get_KeyRate(H15),Get_KeyRate($N$1))) -> 0.0425 | Q14: =IF(G14=0,0,IF(O14>0,ROUND((G14*O14*1/300*P14),2),0)) -> 2065.6 | R14: 2019-03-10 | T14: =O14-#REF! -> 
A15: 9 | C15: 9/3 | D15: от | E15: 2020-08-20 | F15: 75850.59 | G15: 426933.01 | H15: 2020-08-25 | I15: 2020-06-30 | J15: =WORKDAY.INTL(I15,1,1,$R$2:$R$88) -> 2020-07-01 | K15: =IF(AND(H15>J15,B15>0),H15-J15+1,0) -> 0 | L15: =IF(B15>0,ROUND((B15*K15*1/300*M15),2),0) -> 0 | M15: =IF(K15=0,0,Get_KeyRate(H15)) -> 0 | N15: =IF(AND(E15=0,F15=0,H15=0),"+","") ->  | O15: =IF(N15="+",IF(I15>$N$1,"0",IF(N15="+",VALUE($N$1)-VALUE(J15),$N$1-H15))+IF(G15=0,0,IF(AND(A15>=A16,H15>0,H16-H15),H16-H15)),IF(I15>$N$1,"0",IF(G15=0,0,IF(AND(A15>=A16,H15>0),H16-H15,IF(AND(A15<>A16,B15="",B16<>0),VALUE($N$1)-VALUE(H15),IF(A15<>A16,H15-J15,IF(N15="+",VALUE($N$1)-VALUE(J15),$N$1-H15))))))) -> 31 | P15: =IF(G15=0,0,IF(AND(A15<=A16,O15>0,H15<>0),Get_KeyRate(H16),Get_KeyRate($N$1))) -> 0.0425 | Q15: =IF(G15=0,0,IF(O15>0,ROUND((G15*O15*1/300*P15),2),0)) -> 1874.95 | R15: 2019-05-01 | S15: Праздник весны и труда | T15: =O15-#REF! -> 
A16: 9 | C16: 9/4 | D16: от | E16: 2020-09-25 | F16: 257509.2 | G16: 169423.81 | H16: 2020-09-25 | I16: 2020-06-30 | J16: =WORKDAY.INTL(I16,1,1,$R$2:$R$88) -> 2020-07-01 | K16: =IF(AND(H16>J16,B16>0),H16-J16+1,0) -> 0 | L16: =IF(B16>0,ROUND((B16*K16*1/300*M16),2),0) -> 0 | M16: =IF(K16=0,0,Get_KeyRate(H16)) -> 0 | N16: =IF(AND(E16=0,F16=0,H16=0),"+","") ->  | O16: =IF(N16="+",IF(I16>$N$1,"0",IF(N16="+",VALUE($N$1)-VALUE(J16),$N$1-H16))+IF(G16=0,0,IF(AND(A16>=A17,H16>0,H17-H16),H17-H16)),IF(I16>$N$1,"0",IF(G16=0,0,IF(AND(A16>=A17,H16>0),H17-H16,IF(AND(A16<>A17,B16="",B17<>0),VALUE($N$1)-VALUE(H16),IF(A16<>A17,H16-J16,IF(N16="+",VALUE($N$1)-VALUE(J16),$N$1-H16))))))) -> 61 | P16: =IF(G16=0,0,IF(AND(A16<=A17,O16>0,H16<>0),Get_KeyRate(H17),Get_KeyRate($N$1))) -> 0.0425 | Q16: =IF(G16=0,0,IF(O16>0,ROUND((G16*O16*1/300*P16),2),0)) -> 1464.1 | R16: 2019-05-02 | T16: =O16-#REF! -> 
A17: 10 | B17: 1133000 | C17: 10/1 | D17: от | E17: 2020-07-27 | F17: 411991.2 | G17: 721008.8 | H17: 2020-07-27 | I17: 2020-06-30 | J17: =WORKDAY.INTL(I17,1,1,$R$2:$R$88) -> 2020-07-01 | K17: =IF(AND(H17>J17,B17>0),H17-J17+1,0) -> 27 | L17: =IF(B17>0,ROUND((B17*K17*1/300*M17),2),0) -> 4333.73 | M17: =IF(K17=0,0,Get_KeyRate(H17)) -> 0.0425 | N17: =IF(AND(E17=0,F17=0,H17=0),"+","") ->  | O17: =IF(N17="+",IF(I17>$N$1,"0",IF(N17="+",VALUE($N$1)-VALUE(J17),$N$1-H17))+IF(G17=0,0,IF(AND(A17>=A18,H17>0,H18-H17),H18-H17)),IF(I17>$N$1,"0",IF(G17=0,0,IF(AND(A17>=A18,H17>0),H18-H17,IF(AND(A17<>A18,B17="",B18<>0),VALUE($N$1)-VALUE(H17),IF(A17<>A18,H17-J17,IF(N17="+",VALUE($N$1)-VALUE(J17),$N$1-H17))))))) -> 29 | P17: =IF(G17=0,0,IF(AND(A17<=A18,O17>0,H17<>0),Get_KeyRate(H18),Get_KeyRate($N$1))) -> 0.0425 | Q17: =IF(G17=0,0,IF(O17>0,ROUND((G17*O17*1/300*P17),2),0)) -> 2962.14 | R17: 2019-05-03 | T17: =O17-#REF! -> 
A18: 10 | C18: 10/2 | D18: от | E18: 2020-08-20 | F18: 367264.8 | G18: 353744 | H18: 2020-08-25 | I18: 2020-06-30 | J18: =WORKDAY.INTL(I18,1,1,$R$2:$R$88) -> 2020-07-01 | K18: =IF(AND(H18>J18,B18>0),H18-J18+1,0) -> 0 | L18: =IF(B18>0,ROUND((B18*K18*1/300*M18),2),0) -> 0 | M18: =IF(K18=0,0,Get_KeyRate(H18)) -> 0 | N18: =IF(AND(E18=0,F18=0,H18=0),"+","") ->  | O18: =IF(N18="+",IF(I18>$N$1,"0",IF(N18="+",VALUE($N$1)-VALUE(J18),$N$1-H18))+IF(G18=0,0,IF(AND(A18>=A19,H18>0,H19-H18),H19-H18)),IF(I18>$N$1,"0",IF(G18=0,0,IF(AND(A18>=A19,H18>0),H19-H18,IF(AND(A18<>A19,B18="",B19<>0),VALUE($N$1)-VALUE(H18),IF(A18<>A19,H18-J18,IF(N18="+",VALUE($N$1)-VALUE(J18),$N$1-H18))))))) -> 31 | P18: =IF(G18=0,0,IF(AND(A18<=A19,O18>0,H18<>0),Get_KeyRate(H19),Get_KeyRate($N$1))) -> 0.0425 | Q18: =IF(G18=0,0,IF(O18>0,ROUND((G18*O18*1/300*P18),2),0)) -> 1553.53 | R18: 2019-05-04 | T18: =O18-#REF! -> 
A19: 10 | C19: 10/3 | D19: от | E19: 2020-09-25 | F19: 353744 | G19: 0 | H19: 2020-09-25 | I19: 2020-06-30 | J19: =WORKDAY.INTL(I19,1,1,$R$2:$R$88) -> 2020-07-01 | K19: =IF(AND(H19>J19,B19>0),H19-J19+1,0) -> 0 | L19: =IF(B19>0,ROUND((B19*K19*1/300*M19),2),0) -> 0 | M19: =IF(K19=0,0,Get_KeyRate(H19)) -> 0 | N19: =IF(AND(E19=0,F19=0,H19=0),"+","") ->  | O19: =IF(N19="+",IF(I19>$N$1,"0",IF(N19="+",VALUE($N$1)-VALUE(J19),$N$1-H19))+IF(G19=0,0,IF(AND(A19>=A20,H19>0,H20-H19),H20-H19)),IF(I19>$N$1,"0",IF(G19=0,0,IF(AND(A19>=A20,H19>0),H20-H19,IF(AND(A19<>A20,B19="",B20<>0),VALUE($N$1)-VALUE(H19),IF(A19<>A20,H19-J19,IF(N19="+",VALUE($N$1)-VALUE(J19),$N$1-H19))))))) -> 0 | P19: =IF(G19=0,0,IF(AND(A19<=A20,O19>0,H19<>0),Get_KeyRate(H20),Get_KeyRate($N$1))) -> 0 | Q19: =IF(G19=0,0,IF(O19>0,ROUND((G19*O19*1/300*P19),2),0)) -> 0 | R19: 2019-05-05 | T19: =O19-#REF! -> 
A20: 11 | B20: 3004223 | C20: 11/1 | D20: от | E20: 2020-05-15 | F20: 842136 | G20: 2162087 | H20: 2020-05-22 | I20: 2020-06-30 | J20: =WORKDAY.INTL(I20,1,1,$R$2:$R$88) -> 2020-07-01 | K20: =IF(AND(H20>J20,B20>0),H20-J20+1,0) -> 0 | L20: =IF(B20>0,ROUND((B20*K20*1/300*M20),2),0) -> 0 | M20: =IF(K20=0,0,Get_KeyRate(H20)) -> 0 | N20: =IF(AND(E20=0,F20=0,H20=0),"+","") ->  | O20: =IF(N20="+",IF(I20>$N$1,"0",IF(N20="+",VALUE($N$1)-VALUE(J20),$N$1-H20))+IF(G20=0,0,IF(AND(A20>=A21,H20>0,H21-H20),H21-H20)),IF(I20>$N$1,"0",IF(G20=0,0,IF(AND(A20>=A21,H20>0),H21-H20,IF(AND(A20<>A21,B20="",B21<>0),VALUE($N$1)-VALUE(H20),IF(A20<>A21,H20-J20,IF(N20="+",VALUE($N$1)-VALUE(J20),$N$1-H20))))))) -> 24 | P20: =IF(G20=0,0,IF(AND(A20<=A21,O20>0,H20<>0),Get_KeyRate(H21),Get_KeyRate($N$1))) -> 0.055 | Q20: =IF(G20=0,0,IF(O20>0,ROUND((G20*O20*1/300*P20),2),0)) -> 9513.18 | R20: 2019-05-09 | S20: День победы | T20: =O20-#REF! -> 
A21: 11 | C21: 11/2 | D21: от | E21: 2020-06-11 | F21: 663872.4 | G21: 1498214.6 | H21: 2020-06-15 | I21: 2020-06-30 | J21: =WORKDAY.INTL(I21,1,1,$R$2:$R$88) -> 2020-07-01 | K21: =IF(AND(H21>J21,B21>0),H21-J21+1,0) -> 0 | L21: =IF(B21>0,ROUND((B21*K21*1/300*M21),2),0) -> 0 | M21: =IF(K21=0,0,Get_KeyRate(H21)) -> 0 | N21: =IF(AND(E21=0,F21=0,H21=0),"+","") ->  | O21: =IF(N21="+",IF(I21>$N$1,"0",IF(N21="+",VALUE($N$1)-VALUE(J21),$N$1-H21))+IF(G21=0,0,IF(AND(A21>=A22,H21>0,H22-H21),H22-H21)),IF(I21>$N$1,"0",IF(G21=0,0,IF(AND(A21>=A22,H21>0),H22-H21,IF(AND(A21<>A22,B21="",B22<>0),VALUE($N$1)-VALUE(H21),IF(A21<>A22,H21-J21,IF(N21="+",VALUE($N$1)-VALUE(J21),$N$1-H21))))))) -> 42 | P21: =IF(G21=0,0,IF(AND(A21<=A22,O21>0,H21<>0),Get_KeyRate(H22),Get_KeyRate($N$1))) -> 0.0425 | Q21: =IF(G21=0,0,IF(O21>0,ROUND((G21*O21*1/300*P21),2),0)) -> 8914.38 | R21: 2019-05-10 | T21: =O21-#REF! -> 
A22: 11 | C22: 11/3 | D22: от | E22: 2020-07-27 | F22: 1112151.6 | G22: 386063 | H22: 2020-07-27 | I22: 2020-06-30 | J22: =WORKDAY.INTL(I22,1,1,$R$2:$R$88) -> 2020-07-01 | K22: =IF(AND(H22>J22,B22>0),H22-J22+1,0) -> 0 | L22: =IF(B22>0,ROUND((B22*K22*1/300*M22),2),0) -> 0 | M22: =IF(K22=0,0,Get_KeyRate(H22)) -> 0 | N22: =IF(AND(E22=0,F22=0,H22=0),"+","") ->  | O22: =IF(N22="+",IF(I22>$N$1,"0",IF(N22="+",VALUE($N$1)-VALUE(J22),$N$1-H22))+IF(G22=0,0,IF(AND(A22>=A23,H22>0,H23-H22),H23-H22)),IF(I22>$N$1,"0",IF(G22=0,0,IF(AND(A22>=A23,H22>0),H23-H22,IF(AND(A22<>A23,B22="",B23<>0),VALUE($N$1)-VALUE(H22),IF(A22<>A23,H22-J22,IF(N22="+",VALUE($N$1)-VALUE(J22),$N$1-H22))))))) -> 29 | P22: =IF(G22=0,0,IF(AND(A22<=A23,O22>0,H22<>0),Get_KeyRate(H23),Get_KeyRate($N$1))) -> 0.0425 | Q22: =IF(G22=0,0,IF(O22>0,ROUND((G22*O22*1/300*P22),2),0)) -> 1586.08 | R22: 2019-05-11 | T22: =O22-#REF! -> 
A23: 11 | C23: 11/4 | D23: от | E23: 2020-08-20 | F23: 308734.8 | G23: 77328.2 | H23: 2020-08-25 | I23: 2020-06-30 | J23: =WORKDAY.INTL(I23,1,1,$R$2:$R$88) -> 2020-07-01 | K23: =IF(AND(H23>J23,B23>0),H23-J23+1,0) -> 0 | L23: =IF(B23>0,ROUND((B23*K23*1/300*M23),2),0) -> 0 | M23: =IF(K23=0,0,Get_KeyRate(H23)) -> 0 | N23: =IF(AND(E23=0,F23=0,H23=0),"+","") ->  | O23: =IF(N23="+",IF(I23>$N$1,"0",IF(N23="+",VALUE($N$1)-VALUE(J23),$N$1-H23))+IF(G23=0,0,IF(AND(A23>=A24,H23>0,H24-H23),H24-H23)),IF(I23>$N$1,"0",IF(G23=0,0,IF(AND(A23>=A24,H23>0),H24-H23,IF(AND(A23<>A24,B23="",B24<>0),VALUE($N$1)-VALUE(H23),IF(A23<>A24,H23-J23,IF(N23="+",VALUE($N$1)-VALUE(J23),$N$1-H23))))))) -> 31 | P23: =IF(G23=0,0,IF(AND(A23<=A24,O23>0,H23<>0),Get_KeyRate(H24),Get_KeyRate($N$1))) -> 0.0425 | Q23: =IF(G23=0,0,IF(O23>0,ROUND((G23*O23*1/300*P23),2),0)) -> 339.6 | R23: 2019-05-12 | T23: =O23-#REF! -> 
A24: 11 | C24: 11/4 | D24: от | E24: 2020-09-25 | F24: 75927.6 | G24: 1400.6 | H24: 2020-09-25 | I24: 2020-06-30 | J24: =WORKDAY.INTL(I24,1,1,$R$2:$R$88) -> 2020-07-01 | K24: =IF(AND(H24>J24,B24>0),H24-J24+1,0) -> 0 | L24: =IF(B24>0,ROUND((B24*K24*1/300*M24),2),0) -> 0 | M24: =IF(K24=0,0,Get_KeyRate(H24)) -> 0 | N24: =IF(AND(E24=0,F24=0,H24=0),"+","") ->  | O24: =IF(N24="+",IF(I24>$N$1,"0",IF(N24="+",VALUE($N$1)-VALUE(J24),$N$1-H24))+IF(G24=0,0,IF(AND(A24>=A25,H24>0,H25-H24),H25-H24)),IF(I24>$N$1,"0",IF(G24=0,0,IF(AND(A24>=A25,H24>0),H25-H24,IF(AND(A24<>A25,B24="",B25<>0),VALUE($N$1)-VALUE(H24),IF(A24<>A25,H24-J24,IF(N24="+",VALUE($N$1)-VALUE(J24),$N$1-H24))))))) -> 61 | P24: =IF(G24=0,0,IF(AND(A24<=A25,O24>0,H24<>0),Get_KeyRate(H25),Get_KeyRate($N$1))) -> 0.0425 | Q24: =IF(G24=0,0,IF(O24>0,ROUND((G24*O24*1/300*P24),2),0)) -> 12.1 | R24: 2019-06-12 | S24: День России | T24: =O24-#REF! -> 
A25: 12 | B25: 428264 | C25: 12/1 | D25: от | E25: 2020-08-20 | F25: 78234 | G25: 350030 | H25: 2020-08-25 | I25: 2020-06-30 | J25: =WORKDAY.INTL(I25,1,1,$R$2:$R$88) -> 2020-07-01 | K25: =IF(AND(H25>J25,B25>0),H25-J25+1,0) -> 56 | L25: =IF(B25>0,ROUND((B25*K25*1/300*M25),2),0) -> 3397.56 | M25: =IF(K25=0,0,Get_KeyRate(H25)) -> 0.0425 | N25: =IF(AND(E25=0,F25=0,H25=0),"+","") ->  | O25: =IF(N25="+",IF(I25>$N$1,"0",IF(N25="+",VALUE($N$1)-VALUE(J25),$N$1-H25))+IF(G25=0,0,IF(AND(A25>=A26,H25>0,H26-H25),H26-H25)),IF(I25>$N$1,"0",IF(G25=0,0,IF(AND(A25>=A26,H25>0),H26-H25,IF(AND(A25<>A26,B25="",B26<>0),VALUE($N$1)-VALUE(H25),IF(A25<>A26,H25-J25,IF(N25="+",VALUE($N$1)-VALUE(J25),$N$1-H25))))))) -> 31 | P25: =IF(G25=0,0,IF(AND(A25<=A26,O25>0,H25<>0),Get_KeyRate(H26),Get_KeyRate($N$1))) -> 0.0425 | Q25: =IF(G25=0,0,IF(O25>0,ROUND((G25*O25*1/300*P25),2),0)) -> 1537.22 | R25: 2019-11-02 | S25: День народного единства | T25: =O25-#REF! -> 
A26: 12 | C26: 12/2 | D26: от | E26: 2020-09-25 | F26: 350030 | G26: 0 | H26: 2020-09-25 | I26: 2020-06-30 | J26: =WORKDAY.INTL(I26,1,1,$R$2:$R$88) -> 2020-07-01 | K26: =IF(AND(H26>J26,B26>0),H26-J26+1,0) -> 0 | L26: =IF(B26>0,ROUND((B26*K26*1/300*M26),2),0) -> 0 | M26: =IF(K26=0,0,Get_KeyRate(H26)) -> 0 | N26: =IF(AND(E26=0,F26=0,H26=0),"+","") ->  | O26: =IF(N26="+",IF(I26>$N$1,"0",IF(N26="+",VALUE($N$1)-VALUE(J26),$N$1-H26))+IF(G26=0,0,IF(AND(A26>=A27,H26>0,H27-H26),H27-H26)),IF(I26>$N$1,"0",IF(G26=0,0,IF(AND(A26>=A27,H26>0),H27-H26,IF(AND(A26<>A27,B26="",B27<>0),VALUE($N$1)-VALUE(H26),IF(A26<>A27,H26-J26,IF(N26="+",VALUE($N$1)-VALUE(J26),$N$1-H26))))))) -> 0 | P26: =IF(G26=0,0,IF(AND(A26<=A27,O26>0,H26<>0),Get_KeyRate(H27),Get_KeyRate($N$1))) -> 0 | Q26: =IF(G26=0,0,IF(O26>0,ROUND((G26*O26*1/300*P26),2),0)) -> 0 | R26: 2019-11-03 | T26: =O26-#REF! -> 
A27: 13 | B27: 728400 | G27: 728400 | I27: 2020-06-30 | J27: =WORKDAY.INTL(I27,1,1,$R$2:$R$88) -> 2020-07-01 | K27: =IF(AND(H27>J27,B27>0),H27-J27+1,0) -> 0 | L27: =IF(B27>0,ROUND((B27*K27*1/300*M27),2),0) -> 0 | M27: =IF(K27=0,0,Get_KeyRate(H27)) -> 0 | N27: =IF(AND(E27=0,F27=0,H27=0),"+","") -> + | O27: =IF(N27="+",IF(I27>$N$1,"0",IF(N27="+",VALUE($N$1)-VALUE(J27),$N$1-H27))+IF(G27=0,0,IF(AND(A27>=A28,H27>0,H28-H27),H28-H27)),IF(I27>$N$1,"0",IF(G27=0,0,IF(AND(A27>=A28,H27>0),H28-H27,IF(AND(A27<>A28,B27="",B28<>0),VALUE($N$1)-VALUE(H27),IF(A27<>A28,H27-J27,IF(N27="+",VALUE($N$1)-VALUE(J27),$N$1-H27))))))) -> 147 | P27: =IF(G27=0,0,IF(AND(A27<=A28,O27>0,H27<>0),Get_KeyRate(H28),Get_KeyRate($N$1))) -> 0.0425 | Q27: =IF(G27=0,0,IF(O27>0,ROUND((G27*O27*1/300*P27),2),0)) -> 15168.93 | R27: 2019-11-04 | T27: =O27-#REF! -> 
A28: 14 | B28: 278614 | G28: 278614 | I28: 2020-06-30 | J28: =WORKDAY.INTL(I28,1,1,$R$2:$R$88) -> 2020-07-01 | K28: =IF(AND(H28>J28,B28>0),H28-J28+1,0) -> 0 | L28: =IF(B28>0,ROUND((B28*K28*1/300*M28),2),0) -> 0 | M28: =IF(K28=0,0,Get_KeyRate(H28)) -> 0 | N28: =IF(AND(E28=0,F28=0,H28=0),"+","") -> + | O28: =IF(N28="+",IF(I28>$N$1,"0",IF(N28="+",VALUE($N$1)-VALUE(J28),$N$1-H28))+IF(G28=0,0,IF(AND(A28>=A29,H28>0,H29-H28),H29-H28)),IF(I28>$N$1,"0",IF(G28=0,0,IF(AND(A28>=A29,H28>0),H29-H28,IF(AND(A28<>A29,B28="",B29<>0),VALUE($N$1)-VALUE(H28),IF(A28<>A29,H28-J28,IF(N28="+",VALUE($N$1)-VALUE(J28),$N$1-H28))))))) -> 147 | P28: =IF(G28=0,0,IF(AND(A28<=A29,O28>0,H28<>0),Get_KeyRate(H29),Get_KeyRate($N$1))) -> 0.0425 | Q28: =IF(G28=0,0,IF(O28>0,ROUND((G28*O28*1/300*P28),2),0)) -> 5802.14 | R28: 2020-01-01 | S28: каникулы | T28: =O28-#REF! -> 
A29: 15 | B29: 1158017 | C29: 15/1 | D29: от | E29: 2020-06-11 | F29: 172428 | G29: 985589 | H29: 2020-06-15 | I29: 2020-06-30 | J29: =WORKDAY.INTL(I29,1,1,$R$2:$R$88) -> 2020-07-01 | K29: =IF(AND(H29>J29,B29>0),H29-J29+1,0) -> 0 | L29: =IF(B29>0,ROUND((B29*K29*1/300*M29),2),0) -> 0 | M29: =IF(K29=0,0,Get_KeyRate(H29)) -> 0 | N29: =IF(AND(E29=0,F29=0,H29=0),"+","") ->  | O29: =IF(N29="+",IF(I29>$N$1,"0",IF(N29="+",VALUE($N$1)-VALUE(J29),$N$1-H29))+IF(G29=0,0,IF(AND(A29>=A30,H29>0,H30-H29),H30-H29)),IF(I29>$N$1,"0",IF(G29=0,0,IF(AND(A29>=A30,H29>0),H30-H29,IF(AND(A29<>A30,B29="",B30<>0),VALUE($N$1)-VALUE(H29),IF(A29<>A30,H29-J29,IF(N29="+",VALUE($N$1)-VALUE(J29),$N$1-H29))))))) -> 144 | P29: =IF(G29=0,0,IF(AND(A29<=A30,O29>0,H29<>0),Get_KeyRate(H30),Get_KeyRate($N$1))) -> 0.0425 | Q29: =IF(G29=0,0,IF(O29>0,ROUND((G29*O29*1/300*P29),2),0)) -> 20106.02 | R29: 2020-01-02 | T29: =O29-#REF! -> 
A30: 15 | C30: 15/2 | D30: от | E30: 2020-11-06 | F30: 829850.76 | G30: 155738.24 | H30: 2020-11-06 | I30: 2020-06-30 | J30: =WORKDAY.INTL(I30,1,1,$R$2:$R$88) -> 2020-07-01 | K30: =IF(AND(H30>J30,B30>0),H30-J30+1,0) -> 0 | L30: =IF(B30>0,ROUND((B30*K30*1/300*M30),2),0) -> 0 | M30: =IF(K30=0,0,Get_KeyRate(H30)) -> 0 | N30: =IF(AND(E30=0,F30=0,H30=0),"+","") ->  | O30: =IF(N30="+",IF(I30>$N$1,"0",IF(N30="+",VALUE($N$1)-VALUE(J30),$N$1-H30))+IF(G30=0,0,IF(AND(A30>=A31,H30>0,H31-H30),H31-H30)),IF(I30>$N$1,"0",IF(G30=0,0,IF(AND(A30>=A31,H30>0),H31-H30,IF(AND(A30<>A31,B30="",B31<>0),VALUE($N$1)-VALUE(H30),IF(A30<>A31,H30-J30,IF(N30="+",VALUE($N$1)-VALUE(J30),$N$1-H30))))))) -> 19 | P30: =IF(G30=0,0,IF(AND(A30<=A31,O30>0,H30<>0),Get_KeyRate(H31),Get_KeyRate($N$1))) -> 0.0425 | Q30: =IF(G30=0,0,IF(O30>0,ROUND((G30*O30*1/300*P30),2),0)) -> 419.2 | R30: 2020-01-03 | T30: =O30-#REF! -> 
A31: 16 | B31: 732344 | C31: 16/1 | D31: от | E31: 2020-09-25 | F31: 657691.2 | G31: 74652.8 | H31: 2020-09-25 | I31: 2020-06-30 | J31: =WORKDAY.INTL(I31,1,1,$R$2:$R$88) -> 2020-07-01 | K31: =IF(AND(H31>J31,B31>0),H31-J31+1,0) -> 87 | L31: =IF(B31>0,ROUND((B31*K31*1/300*M31),2),0) -> 9026.14 | M31: =IF(K31=0,0,Get_KeyRate(H31)) -> 0.0425 | N31: =IF(AND(E31=0,F31=0,H31=0),"+","") ->  | O31: =IF(N31="+",IF(I31>$N$1,"0",IF(N31="+",VALUE($N$1)-VALUE(J31),$N$1-H31))+IF(G31=0,0,IF(AND(A31>=A32,H31>0,H32-H31),H32-H31)),IF(I31>$N$1,"0",IF(G31=0,0,IF(AND(A31>=A32,H31>0),H32-H31,IF(AND(A31<>A32,B31="",B32<>0),VALUE($N$1)-VALUE(H31),IF(A31<>A32,H31-J31,IF(N31="+",VALUE($N$1)-VALUE(J31),$N$1-H31))))))) -> 86 | P31: =IF(G31=0,0,IF(AND(A31<=A32,O31>0,H31<>0),Get_KeyRate(H32),Get_KeyRate($N$1))) -> 0.0425 | Q31: =IF(G31=0,0,IF(O31>0,ROUND((G31*O31*1/300*P31),2),0)) -> 909.52 | R31: 2020-01-04 | T31: =O31-#REF! -> 
A32: 17 | B32: 321117 | G32: 321117 | I32: 2020-06-30 | J32: =WORKDAY.INTL(I32,1,1,$R$2:$R$88) -> 2020-07-01 | K32: =IF(AND(H32>J32,B32>0),H32-J32+1,0) -> 0 | L32: =IF(B32>0,ROUND((B32*K32*1/300*M32),2),0) -> 0 | M32: =IF(K32=0,0,Get_KeyRate(H32)) -> 0 | N32: =IF(AND(E32=0,F32=0,H32=0),"+","") -> + | O32: =IF(N32="+",IF(I32>$N$1,"0",IF(N32="+",VALUE($N$1)-VALUE(J32),$N$1-H32))+IF(G32=0,0,IF(AND(A32>=A33,H32>0,H33-H32),H33-H32)),IF(I32>$N$1,"0",IF(G32=0,0,IF(AND(A32>=A33,H32>0),H33-H32,IF(AND(A32<>A33,B32="",B33<>0),VALUE($N$1)-VALUE(H32),IF(A32<>A33,H32-J32,IF(N32="+",VALUE($N$1)-VALUE(J32),$N$1-H32))))))) -> 147 | P32: =IF(G32=0,0,IF(AND(A32<=A33,O32>0,H32<>0),Get_KeyRate(H33),Get_KeyRate($N$1))) -> 0.0425 | Q32: =IF(G32=0,0,IF(O32>0,ROUND((G32*O32*1/300*P32),2),0)) -> 6687.26 | R32: 2020-01-05 | T32: =O32-#REF! -> 
A33: 18 | B33: 3575511 | C33: 18/1 | D33: от | E33: 2020-09-25 | F33: 25263.6 | G33: 3550247.4 | H33: 2020-09-25 | I33: 2020-07-31 | J33: =WORKDAY.INTL(I33,1,1,$R$2:$R$88) -> 2020-08-03 | K33: =IF(AND(H33>J33,B33>0),H33-J33+1,0) -> 54 | L33: =IF(B33>0,ROUND((B33*K33*1/300*M33),2),0) -> 27352.66 | M33: =IF(K33=0,0,Get_KeyRate(H33)) -> 0.0425 | N33: =IF(AND(E33=0,F33=0,H33=0),"+","") ->  | O33: =IF(N33="+",IF(I33>$N$1,"0",IF(N33="+",VALUE($N$1)-VALUE(J33),$N$1-H33))+IF(G33=0,0,IF(AND(A33>=A34,H33>0,H34-H33),H34-H33)),IF(I33>$N$1,"0",IF(G33=0,0,IF(AND(A33>=A34,H33>0),H34-H33,IF(AND(A33<>A34,B33="",B34<>0),VALUE($N$1)-VALUE(H33),IF(A33<>A34,H33-J33,IF(N33="+",VALUE($N$1)-VALUE(J33),$N$1-H33))))))) -> 53 | P33: =IF(G33=0,0,IF(AND(A33<=A34,O33>0,H33<>0),Get_KeyRate(H34),Get_KeyRate($N$1))) -> 0.0425 | Q33: =IF(G33=0,0,IF(O33>0,ROUND((G33*O33*1/300*P33),2),0)) -> 26656.44 | R33: 2020-01-06 | T33: =O33-#REF! -> 
A34: 19 | B34: 1939736 | G34: 1939736 | I34: 2020-07-31 | J34: =WORKDAY.INTL(I34,1,1,$R$2:$R$88) -> 2020-08-03 | K34: =IF(AND(H34>J34,B34>0),H34-J34+1,0) -> 0 | L34: =IF(B34>0,ROUND((B34*K34*1/300*M34),2),0) -> 0 | M34: =IF(K34=0,0,Get_KeyRate(H34)) -> 0 | N34: =IF(AND(E34=0,F34=0,H34=0),"+","") -> + | O34: =IF(N34="+",IF(I34>$N$1,"0",IF(N34="+",VALUE($N$1)-VALUE(J34),$N$1-H34))+IF(G34=0,0,IF(AND(A34>=A35,H34>0,H35-H34),H35-H34)),IF(I34>$N$1,"0",IF(G34=0,0,IF(AND(A34>=A35,H34>0),H35-H34,IF(AND(A34<>A35,B34="",B35<>0),VALUE($N$1)-VALUE(H34),IF(A34<>A35,H34-J34,IF(N34="+",VALUE($N$1)-VALUE(J34),$N$1-H34))))))) -> 114 | P34: =IF(G34=0,0,IF(AND(A34<=A35,O34>0,H34<>0),Get_KeyRate(H35),Get_KeyRate($N$1))) -> 0.0425 | Q34: =IF(G34=0,0,IF(O34>0,ROUND((G34*O34*1/300*P34),2),0)) -> 31326.74 | R34: 2020-01-07 | T34: =O34-#REF! -> 
A35: 20 | B35: 53707 | G35: 53707 | I35: 2020-07-31 | J35: =WORKDAY.INTL(I35,1,1,$R$2:$R$88) -> 2020-08-03 | K35: =IF(AND(H35>J35,B35>0),H35-J35+1,0) -> 0 | L35: =IF(B35>0,ROUND((B35*K35*1/300*M35),2),0) -> 0 | M35: =IF(K35=0,0,Get_KeyRate(H35)) -> 0 | N35: =IF(AND(E35=0,F35=0,H35=0),"+","") -> + | O35: =IF(N35="+",IF(I35>$N$1,"0",IF(N35="+",VALUE($N$1)-VALUE(J35),$N$1-H35))+IF(G35=0,0,IF(AND(A35>=A36,H35>0,H36-H35),H36-H35)),IF(I35>$N$1,"0",IF(G35=0,0,IF(AND(A35>=A36,H35>0),H36-H35,IF(AND(A35<>A36,B35="",B36<>0),VALUE($N$1)-VALUE(H35),IF(A35<>A36,H35-J35,IF(N35="+",VALUE($N$1)-VALUE(J35),$N$1-H35))))))) -> 114 | P35: =IF(G35=0,0,IF(AND(A35<=A36,O35>0,H35<>0),Get_KeyRate(H36),Get_KeyRate($N$1))) -> 0.0425 | Q35: =IF(G35=0,0,IF(O35>0,ROUND((G35*O35*1/300*P35),2),0)) -> 867.37 | R35: 2020-01-08 | T35: =O35-#REF! -> 
A36: 21 | B36: 1089795 | G36: 1089795 | I36: 2020-08-31 | J36: =WORKDAY.INTL(I36,1,1,$R$2:$R$88) -> 2020-09-01 | K36: =IF(AND(H36>J36,B36>0),H36-J36+1,0) -> 0 | L36: =IF(B36>0,ROUND((B36*K36*1/300*M36),2),0) -> 0 | M36: =IF(K36=0,0,Get_KeyRate(H36)) -> 0 | N36: =IF(AND(E36=0,F36=0,H36=0),"+","") -> + | O36: =IF(N36="+",IF(I36>$N$1,"0",IF(N36="+",VALUE($N$1)-VALUE(J36),$N$1-H36))+IF(G36=0,0,IF(AND(A36>=A37,H36>0,H37-H36),H37-H36)),IF(I36>$N$1,"0",IF(G36=0,0,IF(AND(A36>=A37,H36>0),H37-H36,IF(AND(A36<>A37,B36="",B37<>0),VALUE($N$1)-VALUE(H36),IF(A36<>A37,H36-J36,IF(N36="+",VALUE($N$1)-VALUE(J36),$N$1-H36))))))) -> 85 | P36: =IF(G36=0,0,IF(AND(A36<=A37,O36>0,H36<>0),Get_KeyRate(H37),Get_KeyRate($N$1))) -> 0.0425 | Q36: =IF(G36=0,0,IF(O36>0,ROUND((G36*O36*1/300*P36),2),0)) -> 13122.95 | R36: 2020-02-22 | S36: День защитника отеч. | T36: =O36-#REF! -> 
A37: 22 | B37: 726119 | G37: 726119 | I37: 2020-08-31 | J37: =WORKDAY.INTL(I37,1,1,$R$2:$R$88) -> 2020-09-01 | K37: =IF(AND(H37>J37,B37>0),H37-J37+1,0) -> 0 | L37: =IF(B37>0,ROUND((B37*K37*1/300*M37),2),0) -> 0 | M37: =IF(K37=0,0,Get_KeyRate(H37)) -> 0 | N37: =IF(AND(E37=0,F37=0,H37=0),"+","") -> + | O37: =IF(N37="+",IF(I37>$N$1,"0",IF(N37="+",VALUE($N$1)-VALUE(J37),$N$1-H37))+IF(G37=0,0,IF(AND(A37>=A38,H37>0,H38-H37),H38-H37)),IF(I37>$N$1,"0",IF(G37=0,0,IF(AND(A37>=A38,H37>0),H38-H37,IF(AND(A37<>A38,B37="",B38<>0),VALUE($N$1)-VALUE(H37),IF(A37<>A38,H37-J37,IF(N37="+",VALUE($N$1)-VALUE(J37),$N$1-H37))))))) -> 85 | P37: =IF(G37=0,0,IF(AND(A37<=A38,O37>0,H37<>0),Get_KeyRate(H38),Get_KeyRate($N$1))) -> 0.0425 | Q37: =IF(G37=0,0,IF(O37>0,ROUND((G37*O37*1/300*P37),2),0)) -> 8743.68 | R37: 2020-02-23 | T37: =O37-#REF! -> 
A38: 23 | B38: 1386200 | G38: 1386200 | I38: 2020-08-31 | J38: =WORKDAY.INTL(I38,1,1,$R$2:$R$88) -> 2020-09-01 | K38: =IF(AND(H38>J38,B38>0),H38-J38+1,0) -> 0 | L38: =IF(B38>0,ROUND((B38*K38*1/300*M38),2),0) -> 0 | M38: =IF(K38=0,0,Get_KeyRate(H38)) -> 0 | N38: =IF(AND(E38=0,F38=0,H38=0),"+","") -> + | O38: =IF(N38="+",IF(I38>$N$1,"0",IF(N38="+",VALUE($N$1)-VALUE(J38),$N$1-H38))+IF(G38=0,0,IF(AND(A38>=A39,H38>0,H39-H38),H39-H38)),IF(I38>$N$1,"0",IF(G38=0,0,IF(AND(A38>=A39,H38>0),H39-H38,IF(AND(A38<>A39,B38="",B39<>0),VALUE($N$1)-VALUE(H38),IF(A38<>A39,H38-J38,IF(N38="+",VALUE($N$1)-VALUE(J38),$N$1-H38))))))) -> 85 | P38: =IF(G38=0,0,IF(AND(A38<=A39,O38>0,H38<>0),Get_KeyRate(H39),Get_KeyRate($N$1))) -> 0.0425 | Q38: =IF(G38=0,0,IF(O38>0,ROUND((G38*O38*1/300*P38),2),0)) -> 16692.16 | R38: 2020-02-24 | T38: =O38-#REF! -> 
A39: 24 | B39: 961895 | C39: 24/1 | D39: от | E39: 2020-08-20 | F39: 163862.4 | G39: 798032.6 | H39: 2020-08-25 | I39: 2020-08-31 | J39: =WORKDAY.INTL(I39,1,1,$R$2:$R$88) -> 2020-09-01 | K39: =IF(AND(H39>J39,B39>0),H39-J39+1,0) -> 0 | L39: =IF(B39>0,ROUND((B39*K39*1/300*M39),2),0) -> 0 | M39: =IF(K39=0,0,Get_KeyRate(H39)) -> 0 | N39: =IF(AND(E39=0,F39=0,H39=0),"+","") ->  | O39: =IF(N39="+",IF(I39>$N$1,"0",IF(N39="+",VALUE($N$1)-VALUE(J39),$N$1-H39))+IF(G39=0,0,IF(AND(A39>=A40,H39>0,H40-H39),H40-H39)),IF(I39>$N$1,"0",IF(G39=0,0,IF(AND(A39>=A40,H39>0),H40-H39,IF(AND(A39<>A40,B39="",B40<>0),VALUE($N$1)-VALUE(H39),IF(A39<>A40,H39-J39,IF(N39="+",VALUE($N$1)-VALUE(J39),$N$1-H39))))))) -> 31 | P39: =IF(G39=0,0,IF(AND(A39<=A40,O39>0,H39<>0),Get_KeyRate(H40),Get_KeyRate($N$1))) -> 0.0425 | Q39: =IF(G39=0,0,IF(O39>0,ROUND((G39*O39*1/300*P39),2),0)) -> 3504.69 | R39: 2020-03-07 | S39: Международный женский день | T39: =O39-#REF! -> 
A40: 24 | C40: 24/2 | D40: от | E40: 2020-09-25 | F40: 94658.4 | G40: 703374.2 | H40: 2020-09-25 | I40: 2020-08-31 | J40: =WORKDAY.INTL(I40,1,1,$R$2:$R$88) -> 2020-09-01 | K40: =IF(AND(H40>J40,B40>0),H40-J40+1,0) -> 0 | L40: =IF(B40>0,ROUND((B40*K40*1/300*M40),2),0) -> 0 | M40: =IF(K40=0,0,Get_KeyRate(H40)) -> 0 | N40: =IF(AND(E40=0,F40=0,H40=0),"+","") ->  | O40: =IF(N40="+",IF(I40>$N$1,"0",IF(N40="+",VALUE($N$1)-VALUE(J40),$N$1-H40))+IF(G40=0,0,IF(AND(A40>=A41,H40>0,H41-H40),H41-H40)),IF(I40>$N$1,"0",IF(G40=0,0,IF(AND(A40>=A41,H40>0),H41-H40,IF(AND(A40<>A41,B40="",B41<>0),VALUE($N$1)-VALUE(H40),IF(A40<>A41,H40-J40,IF(N40="+",VALUE($N$1)-VALUE(J40),$N$1-H40))))))) -> 61 | P40: =IF(G40=0,0,IF(AND(A40<=A41,O40>0,H40<>0),Get_KeyRate(H41),Get_KeyRate($N$1))) -> 0.0425 | Q40: =IF(G40=0,0,IF(O40>0,ROUND((G40*O40*1/300*P40),2),0)) -> 6078.33 | R40: 2020-03-08 | T40: =O40-#REF! -> 
A41: 25 | B41: 2863205 | C41: 25/1 | D41: от | E41: 2020-09-25 | F41: 2751631.2 | G41: 111573.8 | H41: 2020-09-25 | I41: 2020-08-31 | J41: =WORKDAY.INTL(I41,1,1,$R$2:$R$88) -> 2020-09-01 | K41: =IF(AND(H41>J41,B41>0),H41-J41+1,0) -> 25 | L41: =IF(B41>0,ROUND((B41*K41*1/300*M41),2),0) -> 10140.52 | M41: =IF(K41=0,0,Get_KeyRate(H41)) -> 0.0425 | N41: =IF(AND(E41=0,F41=0,H41=0),"+","") ->  | O41: =IF(N41="+",IF(I41>$N$1,"0",IF(N41="+",VALUE($N$1)-VALUE(J41),$N$1-H41))+IF(G41=0,0,IF(AND(A41>=A42,H41>0,H42-H41),H42-H41)),IF(I41>$N$1,"0",IF(G41=0,0,IF(AND(A41>=A42,H41>0),H42-H41,IF(AND(A41<>A42,B41="",B42<>0),VALUE($N$1)-VALUE(H41),IF(A41<>A42,H41-J41,IF(N41="+",VALUE($N$1)-VALUE(J41),$N$1-H41))))))) -> 24 | P41: =IF(G41=0,0,IF(AND(A41<=A42,O41>0,H41<>0),Get_KeyRate(H42),Get_KeyRate($N$1))) -> 0.0425 | Q41: =IF(G41=0,0,IF(O41>0,ROUND((G41*O41*1/300*P41),2),0)) -> 379.35 | R41: 2020-03-09 | T41: =O41-#REF! -> 
A42: 26 | B42: 132598 | G42: 132598 | I42: 2020-08-31 | J42: =WORKDAY.INTL(I42,1,1,$R$2:$R$88) -> 2020-09-01 | K42: =IF(AND(H42>J42,B42>0),H42-J42+1,0) -> 0 | L42: =IF(B42>0,ROUND((B42*K42*1/300*M42),2),0) -> 0 | M42: =IF(K42=0,0,Get_KeyRate(H42)) -> 0 | N42: =IF(AND(E42=0,F42=0,H42=0),"+","") -> + | O42: =IF(N42="+",IF(I42>$N$1,"0",IF(N42="+",VALUE($N$1)-VALUE(J42),$N$1-H42))+IF(G42=0,0,IF(AND(A42>=A43,H42>0,H43-H42),H43-H42)),IF(I42>$N$1,"0",IF(G42=0,0,IF(AND(A42>=A43,H42>0),H43-H42,IF(AND(A42<>A43,B42="",B43<>0),VALUE($N$1)-VALUE(H42),IF(A42<>A43,H42-J42,IF(N42="+",VALUE($N$1)-VALUE(J42),$N$1-H42))))))) -> 85 | P42: =IF(G42=0,0,IF(AND(A42<=A43,O42>0,H42<>0),Get_KeyRate(H43),Get_KeyRate($N$1))) -> 0.0425 | Q42: =IF(G42=0,0,IF(O42>0,ROUND((G42*O42*1/300*P42),2),0)) -> 1596.7 | S42: 2020-03-28 | T42: =O42-#REF! -> 
A43: 27 | B43: 520686 | G43: 520686 | I43: 2020-08-31 | J43: =WORKDAY.INTL(I43,1,1,$R$2:$R$88) -> 2020-09-01 | K43: =IF(AND(H43>J43,B43>0),H43-J43+1,0) -> 0 | L43: =IF(B43>0,ROUND((B43*K43*1/300*M43),2),0) -> 0 | M43: =IF(K43=0,0,Get_KeyRate(H43)) -> 0 | N43: =IF(AND(E43=0,F43=0,H43=0),"+","") -> + | O43: =IF(N43="+",IF(I43>$N$1,"0",IF(N43="+",VALUE($N$1)-VALUE(J43),$N$1-H43))+IF(G43=0,0,IF(AND(A43>=A44,H43>0,H44-H43),H44-H43)),IF(I43>$N$1,"0",IF(G43=0,0,IF(AND(A43>=A44,H43>0),H44-H43,IF(AND(A43<>A44,B43="",B44<>0),VALUE($N$1)-VALUE(H43),IF(A43<>A44,H43-J43,IF(N43="+",VALUE($N$1)-VALUE(J43),$N$1-H43))))))) -> 85 | P43: =IF(G43=0,0,IF(AND(A43<=A44,O43>0,H43<>0),Get_KeyRate(H44),Get_KeyRate($N$1))) -> 0.0425 | Q43: =IF(G43=0,0,IF(O43>0,ROUND((G43*O43*1/300*P43),2),0)) -> 6269.93 | S43: 2020-03-29 | T43: =O43-#REF! -> 
A44: 28 | B44: 488182 | G44: 488182 | I44: 2020-08-31 | J44: =WORKDAY.INTL(I44,1,1,$R$2:$R$88) -> 2020-09-01 | K44: =IF(AND(H44>J44,B44>0),H44-J44+1,0) -> 0 | L44: =IF(B44>0,ROUND((B44*K44*1/300*M44),2),0) -> 0 | M44: =IF(K44=0,0,Get_KeyRate(H44)) -> 0 | N44: =IF(AND(E44=0,F44=0,H44=0),"+","") -> + | O44: =IF(N44="+",IF(I44>$N$1,"0",IF(N44="+",VALUE($N$1)-VALUE(J44),$N$1-H44))+IF(G44=0,0,IF(AND(A44>=A45,H44>0,H45-H44),H45-H44)),IF(I44>$N$1,"0",IF(G44=0,0,IF(AND(A44>=A45,H44>0),H45-H44,IF(AND(A44<>A45,B44="",B45<>0),VALUE($N$1)-VALUE(H44),IF(A44<>A45,H44-J44,IF(N44="+",VALUE($N$1)-VALUE(J44),$N$1-H44))))))) -> 85 | P44: =IF(G44=0,0,IF(AND(A44<=A45,O44>0,H44<>0),Get_KeyRate(H45),Get_KeyRate($N$1))) -> 0.0425 | Q44: =IF(G44=0,0,IF(O44>0,ROUND((G44*O44*1/300*P44),2),0)) -> 5878.52 | S44: 2020-03-30 | T44: =O44-#REF! -> 
A45: 29 | B45: 249138 | C45: 29/1 | D45: от | E45: 2020-08-20 | F45: 227139.6 | G45: 21998.4 | H45: 2020-08-25 | I45: 2020-08-31 | J45: =WORKDAY.INTL(I45,1,1,$R$2:$R$88) -> 2020-09-01 | K45: =IF(AND(H45>J45,B45>0),H45-J45+1,0) -> 0 | L45: =IF(B45>0,ROUND((B45*K45*1/300*M45),2),0) -> 0 | M45: =IF(K45=0,0,Get_KeyRate(H45)) -> 0 | N45: =IF(AND(E45=0,F45=0,H45=0),"+","") ->  | O45: =IF(N45="+",IF(I45>$N$1,"0",IF(N45="+",VALUE($N$1)-VALUE(J45),$N$1-H45))+IF(G45=0,0,IF(AND(A45>=A46,H45>0,H46-H45),H46-H45)),IF(I45>$N$1,"0",IF(G45=0,0,IF(AND(A45>=A46,H45>0),H46-H45,IF(AND(A45<>A46,B45="",B46<>0),VALUE($N$1)-VALUE(H45),IF(A45<>A46,H45-J45,IF(N45="+",VALUE($N$1)-VALUE(J45),$N$1-H45))))))) -> 73 | P45: =IF(G45=0,0,IF(AND(A45<=A46,O45>0,H45<>0),Get_KeyRate(H46),Get_KeyRate($N$1))) -> 0.0425 | Q45: =IF(G45=0,0,IF(O45>0,ROUND((G45*O45*1/300*P45),2),0)) -> 227.5 | S45: 2020-03-31 | T45: =O45-#REF! -> 
A46: 29 | C46: 29/2 | D46: от | E46: 2020-11-06 | F46: 17653.5 | G46: 4344.9 | H46: 2020-11-06 | I46: 2020-08-31 | J46: =WORKDAY.INTL(I46,1,1,$R$2:$R$88) -> 2020-09-01 | K46: =IF(AND(H46>J46,B46>0),H46-J46+1,0) -> 0 | L46: =IF(B46>0,ROUND((B46*K46*1/300*M46),2),0) -> 0 | M46: =IF(K46=0,0,Get_KeyRate(H46)) -> 0 | N46: =IF(AND(E46=0,F46=0,H46=0),"+","") ->  | O46: =IF(N46="+",IF(I46>$N$1,"0",IF(N46="+",VALUE($N$1)-VALUE(J46),$N$1-H46))+IF(G46=0,0,IF(AND(A46>=A47,H46>0,H47-H46),H47-H46)),IF(I46>$N$1,"0",IF(G46=0,0,IF(AND(A46>=A47,H46>0),H47-H46,IF(AND(A46<>A47,B46="",B47<>0),VALUE($N$1)-VALUE(H46),IF(A46<>A47,H46-J46,IF(N46="+",VALUE($N$1)-VALUE(J46),$N$1-H46))))))) -> 19 | P46: =IF(G46=0,0,IF(AND(A46<=A47,O46>0,H46<>0),Get_KeyRate(H47),Get_KeyRate($N$1))) -> 0.0425 | Q46: =IF(G46=0,0,IF(O46>0,ROUND((G46*O46*1/300*P46),2),0)) -> 11.7 | S46: 2020-04-01 | T46: =O46-#REF! -> 
A47: 30 | B47: 46809 | G47: 46809 | I47: 2020-08-31 | J47: =WORKDAY.INTL(I47,1,1,$R$2:$R$88) -> 2020-09-01 | K47: =IF(AND(H47>J47,B47>0),H47-J47+1,0) -> 0 | L47: =IF(B47>0,ROUND((B47*K47*1/300*M47),2),0) -> 0 | M47: =IF(K47=0,0,Get_KeyRate(H47)) -> 0 | N47: =IF(AND(E47=0,F47=0,H47=0),"+","") -> + | O47: =IF(N47="+",IF(I47>$N$1,"0",IF(N47="+",VALUE($N$1)-VALUE(J47),$N$1-H47))+IF(G47=0,0,IF(AND(A47>=A48,H47>0,H48-H47),H48-H47)),IF(I47>$N$1,"0",IF(G47=0,0,IF(AND(A47>=A48,H47>0),H48-H47,IF(AND(A47<>A48,B47="",B48<>0),VALUE($N$1)-VALUE(H47),IF(A47<>A48,H47-J47,IF(N47="+",VALUE($N$1)-VALUE(J47),$N$1-H47))))))) -> 85 | P47: =IF(G47=0,0,IF(AND(A47<=A48,O47>0,H47<>0),Get_KeyRate(H48),Get_KeyRate($N$1))) -> 0.0425 | Q47: =IF(G47=0,0,IF(O47>0,ROUND((G47*O47*1/300*P47),2),0)) -> 563.66 | S47: 2020-04-02 | T47: =O47-#REF! -> 
A48: 31 | B48: 3905532 | G48: 3905532 | I48: 2020-09-30 | J48: =WORKDAY.INTL(I48,1,1,$R$2:$R$88) -> 2020-10-01 | K48: =IF(AND(H48>J48,B48>0),H48-J48+1,0) -> 0 | L48: =IF(B48>0,ROUND((B48*K48*1/300*M48),2),0) -> 0 | M48: =IF(K48=0,0,Get_KeyRate(H48)) -> 0 | N48: =IF(AND(E48=0,F48=0,H48=0),"+","") -> + | O48: =IF(N48="+",IF(I48>$N$1,"0",IF(N48="+",VALUE($N$1)-VALUE(J48),$N$1-H48))+IF(G48=0,0,IF(AND(A48>=A49,H48>0,H49-H48),H49-H48)),IF(I48>$N$1,"0",IF(G48=0,0,IF(AND(A48>=A49,H48>0),H49-H48,IF(AND(A48<>A49,B48="",B49<>0),VALUE($N$1)-VALUE(H48),IF(A48<>A49,H48-J48,IF(N48="+",VALUE($N$1)-VALUE(J48),$N$1-H48))))))) -> 55 | P48: =IF(G48=0,0,IF(AND(A48<=A49,O48>0,H48<>0),Get_KeyRate(H49),Get_KeyRate($N$1))) -> 0.0425 | Q48: =IF(G48=0,0,IF(O48>0,ROUND((G48*O48*1/300*P48),2),0)) -> 30430.6 | S48: 2020-04-03 | T48: =O48-#REF! -> 
A49: 32 | B49: 2742454 | G49: 2742454 | I49: 2020-09-30 | J49: =WORKDAY.INTL(I49,1,1,$R$2:$R$88) -> 2020-10-01 | K49: =IF(AND(H49>J49,B49>0),H49-J49+1,0) -> 0 | L49: =IF(B49>0,ROUND((B49*K49*1/300*M49),2),0) -> 0 | M49: =IF(K49=0,0,Get_KeyRate(H49)) -> 0 | N49: =IF(AND(E49=0,F49=0,H49=0),"+","") -> + | O49: =IF(N49="+",IF(I49>$N$1,"0",IF(N49="+",VALUE($N$1)-VALUE(J49),$N$1-H49))+IF(G49=0,0,IF(AND(A49>=A50,H49>0,H50-H49),H50-H49)),IF(I49>$N$1,"0",IF(G49=0,0,IF(AND(A49>=A50,H49>0),H50-H49,IF(AND(A49<>A50,B49="",B50<>0),VALUE($N$1)-VALUE(H49),IF(A49<>A50,H49-J49,IF(N49="+",VALUE($N$1)-VALUE(J49),$N$1-H49))))))) -> 55 | P49: =IF(G49=0,0,IF(AND(A49<=A50,O49>0,H49<>0),Get_KeyRate(H50),Get_KeyRate($N$1))) -> 0.0425 | Q49: =IF(G49=0,0,IF(O49>0,ROUND((G49*O49*1/300*P49),2),0)) -> 21368.29 | S49: 2020-04-04 | T49: =O49-#REF! -> 
A50: 33 | B50: 92166 | C50: 33/1 | D50: от | E50: 2020-11-06 | F50: 92166 | G50: 0 | H50: 2020-11-06 | I50: 2020-09-30 | J50: =WORKDAY.INTL(I50,1,1,$R$2:$R$88) -> 2020-10-01 | K50: =IF(AND(H50>J50,B50>0),H50-J50+1,0) -> 37 | L50: =IF(B50>0,ROUND((B50*K50*1/300*M50),2),0) -> 483.1 | M50: =IF(K50=0,0,Get_KeyRate(H50)) -> 0.0425 | N50: =IF(AND(E50=0,F50=0,H50=0),"+","") ->  | O50: =IF(N50="+",IF(I50>$N$1,"0",IF(N50="+",VALUE($N$1)-VALUE(J50),$N$1-H50))+IF(G50=0,0,IF(AND(A50>=A51,H50>0,H51-H50),H51-H50)),IF(I50>$N$1,"0",IF(G50=0,0,IF(AND(A50>=A51,H50>0),H51-H50,IF(AND(A50<>A51,B50="",B51<>0),VALUE($N$1)-VALUE(H50),IF(A50<>A51,H50-J50,IF(N50="+",VALUE($N$1)-VALUE(J50),$N$1-H50))))))) -> 0 | P50: =IF(G50=0,0,IF(AND(A50<=A51,O50>0,H50<>0),Get_KeyRate(H51),Get_KeyRate($N$1))) -> 0 | Q50: =IF(G50=0,0,IF(O50>0,ROUND((G50*O50*1/300*P50),2),0)) -> 0 | S50: 2020-04-05 | T50: =O50-#REF! -> 
A51: 34 | B51: 1239827 | C51: 34/1 | D51: от | E51: 2020-11-06 | F51: 918350.84 | G51: 321476.16 | H51: 2020-11-06 | I51: 2020-09-30 | J51: =WORKDAY.INTL(I51,1,1,$R$2:$R$88) -> 2020-10-01 | K51: =IF(AND(H51>J51,B51>0),H51-J51+1,0) -> 37 | L51: =IF(B51>0,ROUND((B51*K51*1/300*M51),2),0) -> 6498.76 | M51: =IF(K51=0,0,Get_KeyRate(H51)) -> 0.0425 | N51: =IF(AND(E51=0,F51=0,H51=0),"+","") ->  | O51: =IF(N51="+",IF(I51>$N$1,"0",IF(N51="+",VALUE($N$1)-VALUE(J51),$N$1-H51))+IF(G51=0,0,IF(AND(A51>=A52,H51>0,H52-H51),H52-H51)),IF(I51>$N$1,"0",IF(G51=0,0,IF(AND(A51>=A52,H51>0),H52-H51,IF(AND(A51<>A52,B51="",B52<>0),VALUE($N$1)-VALUE(H51),IF(A51<>A52,H51-J51,IF(N51="+",VALUE($N$1)-VALUE(J51),$N$1-H51))))))) -> 36 | P51: =IF(G51=0,0,IF(AND(A51<=A52,O51>0,H51<>0),Get_KeyRate(H52),Get_KeyRate($N$1))) -> 0.0425 | Q51: =IF(G51=0,0,IF(O51>0,ROUND((G51*O51*1/300*P51),2),0)) -> 1639.53 | S51: 2020-04-06 | T51: =O51-#REF! -> 
A52: 35 | B52: 1268541 | G52: 1268541 | I52: 2020-09-30 | J52: =WORKDAY.INTL(I52,1,1,$R$2:$R$88) -> 2020-10-01 | K52: =IF(AND(H52>J52,B52>0),H52-J52+1,0) -> 0 | L52: =IF(B52>0,ROUND((B52*K52*1/300*M52),2),0) -> 0 | M52: =IF(K52=0,0,Get_KeyRate(H52)) -> 0 | N52: =IF(AND(E52=0,F52=0,H52=0),"+","") -> + | O52: =IF(N52="+",IF(I52>$N$1,"0",IF(N52="+",VALUE($N$1)-VALUE(J52),$N$1-H52))+IF(G52=0,0,IF(AND(A52>=A53,H52>0,H53-H52),H53-H52)),IF(I52>$N$1,"0",IF(G52=0,0,IF(AND(A52>=A53,H52>0),H53-H52,IF(AND(A52<>A53,B52="",B53<>0),VALUE($N$1)-VALUE(H52),IF(A52<>A53,H52-J52,IF(N52="+",VALUE($N$1)-VALUE(J52),$N$1-H52))))))) -> 55 | P52: =IF(G52=0,0,IF(AND(A52<=A53,O52>0,H52<>0),Get_KeyRate(H53),Get_KeyRate($N$1))) -> 0.0425 | Q52: =IF(G52=0,0,IF(O52>0,ROUND((G52*O52*1/300*P52),2),0)) -> 9884.05 | S52: 2020-04-07 | T52: =O52-#REF! -> 
A53: 36 | B53: 565450 | C53: 36/1 | D53: от | E53: 2020-08-20 | F53: 248911.2 | G53: 316538.8 | H53: 2020-08-25 | I53: 2020-09-30 | J53: =WORKDAY.INTL(I53,1,1,$R$2:$R$88) -> 2020-10-01 | K53: =IF(AND(H53>J53,B53>0),H53-J53+1,0) -> 0 | L53: =IF(B53>0,ROUND((B53*K53*1/300*M53),2),0) -> 0 | M53: =IF(K53=0,0,Get_KeyRate(H53)) -> 0 | N53: =IF(AND(E53=0,F53=0,H53=0),"+","") ->  | O53: =IF(N53="+",IF(I53>$N$1,"0",IF(N53="+",VALUE($N$1)-VALUE(J53),$N$1-H53))+IF(G53=0,0,IF(AND(A53>=A54,H53>0,H54-H53),H54-H53)),IF(I53>$N$1,"0",IF(G53=0,0,IF(AND(A53>=A54,H53>0),H54-H53,IF(AND(A53<>A54,B53="",B54<>0),VALUE($N$1)-VALUE(H53),IF(A53<>A54,H53-J53,IF(N53="+",VALUE($N$1)-VALUE(J53),$N$1-H53))))))) -> 73 | P53: =IF(G53=0,0,IF(AND(A53<=A54,O53>0,H53<>0),Get_KeyRate(H54),Get_KeyRate($N$1))) -> 0.0425 | Q53: =IF(G53=0,0,IF(O53>0,ROUND((G53*O53*1/300*P53),2),0)) -> 3273.54 | S53: 2020-04-08 | T53: =O53-#REF! -> 
A54: 36 | C54: 36/2 | D54: от | E54: 2020-11-06 | F54: 314161.68 | G54: 2377.12 | H54: 2020-11-06 | I54: 2020-09-30 | J54: =WORKDAY.INTL(I54,1,1,$R$2:$R$88) -> 2020-10-01 | K54: =IF(AND(H54>J54,B54>0),H54-J54+1,0) -> 0 | L54: =IF(B54>0,ROUND((B54*K54*1/300*M54),2),0) -> 0 | M54: =IF(K54=0,0,Get_KeyRate(H54)) -> 0 | N54: =IF(AND(E54=0,F54=0,H54=0),"+","") ->  | O54: =IF(N54="+",IF(I54>$N$1,"0",IF(N54="+",VALUE($N$1)-VALUE(J54),$N$1-H54))+IF(G54=0,0,IF(AND(A54>=A55,H54>0,H55-H54),H55-H54)),IF(I54>$N$1,"0",IF(G54=0,0,IF(AND(A54>=A55,H54>0),H55-H54,IF(AND(A54<>A55,B54="",B55<>0),VALUE($N$1)-VALUE(H54),IF(A54<>A55,H54-J54,IF(N54="+",VALUE($N$1)-VALUE(J54),$N$1-H54))))))) -> 19 | P54: =IF(G54=0,0,IF(AND(A54<=A55,O54>0,H54<>0),Get_KeyRate(H55),Get_KeyRate($N$1))) -> 0.0425 | Q54: =IF(G54=0,0,IF(O54>0,ROUND((G54*O54*1/300*P54),2),0)) -> 6.4 | S54: 2020-04-09 | T54: =O54-#REF! -> 
A55: 37 | B55: 2349763 | G55: 2349763 | I55: 2020-09-30 | J55: =WORKDAY.INTL(I55,1,1,$R$2:$R$88) -> 2020-10-01 | K55: =IF(AND(H55>J55,B55>0),H55-J55+1,0) -> 0 | L55: =IF(B55>0,ROUND((B55*K55*1/300*M55),2),0) -> 0 | M55: =IF(K55=0,0,Get_KeyRate(H55)) -> 0 | N55: =IF(AND(E55=0,F55=0,H55=0),"+","") -> + | O55: =IF(N55="+",IF(I55>$N$1,"0",IF(N55="+",VALUE($N$1)-VALUE(J55),$N$1-H55))+IF(G55=0,0,IF(AND(A55>=A56,H55>0,H56-H55),H56-H55)),IF(I55>$N$1,"0",IF(G55=0,0,IF(AND(A55>=A56,H55>0),H56-H55,IF(AND(A55<>A56,B55="",B56<>0),VALUE($N$1)-VALUE(H55),IF(A55<>A56,H55-J55,IF(N55="+",VALUE($N$1)-VALUE(J55),$N$1-H55))))))) -> 55 | P55: =IF(G55=0,0,IF(AND(A55<=A56,O55>0,H55<>0),Get_KeyRate(H56),Get_KeyRate($N$1))) -> 0.0425 | Q55: =IF(G55=0,0,IF(O55>0,ROUND((G55*O55*1/300*P55),2),0)) -> 18308.57 | S55: 2020-04-10 | T55: =O55-#REF! -> 
A56: 38 | B56: 249274 | G56: 249274 | I56: 2020-09-30 | J56: =WORKDAY.INTL(I56,1,1,$R$2:$R$88) -> 2020-10-01 | K56: =IF(AND(H56>J56,B56>0),H56-J56+1,0) -> 0 | L56: =IF(B56>0,ROUND((B56*K56*1/300*M56),2),0) -> 0 | M56: =IF(K56=0,0,Get_KeyRate(H56)) -> 0 | N56: =IF(AND(E56=0,F56=0,H56=0),"+","") -> + | O56: =IF(N56="+",IF(I56>$N$1,"0",IF(N56="+",VALUE($N$1)-VALUE(J56),$N$1-H56))+IF(G56=0,0,IF(AND(A56>=A57,H56>0,H57-H56),H57-H56)),IF(I56>$N$1,"0",IF(G56=0,0,IF(AND(A56>=A57,H56>0),H57-H56,IF(AND(A56<>A57,B56="",B57<>0),VALUE($N$1)-VALUE(H56),IF(A56<>A57,H56-J56,IF(N56="+",VALUE($N$1)-VALUE(J56),$N$1-H56))))))) -> 55 | P56: =IF(G56=0,0,IF(AND(A56<=A57,O56>0,H56<>0),Get_KeyRate(H57),Get_KeyRate($N$1))) -> 0.0425 | Q56: =IF(G56=0,0,IF(O56>0,ROUND((G56*O56*1/300*P56),2),0)) -> 1942.26 | S56: 2020-04-11 | T56: =O56-#REF! -> 
A57: 39 | B57: 220754 | G57: 220754 | I57: 2020-09-30 | J57: =WORKDAY.INTL(I57,1,1,$R$2:$R$88) -> 2020-10-01 | K57: =IF(AND(H57>J57,B57>0),H57-J57+1,0) -> 0 | L57: =IF(B57>0,ROUND((B57*K57*1/300*M57),2),0) -> 0 | M57: =IF(K57=0,0,Get_KeyRate(H57)) -> 0 | N57: =IF(AND(E57=0,F57=0,H57=0),"+","") -> + | O57: =IF(N57="+",IF(I57>$N$1,"0",IF(N57="+",VALUE($N$1)-VALUE(J57),$N$1-H57))+IF(G57=0,0,IF(AND(A57>=A58,H57>0,H58-H57),H58-H57)),IF(I57>$N$1,"0",IF(G57=0,0,IF(AND(A57>=A58,H57>0),H58-H57,IF(AND(A57<>A58,B57="",B58<>0),VALUE($N$1)-VALUE(H57),IF(A57<>A58,H57-J57,IF(N57="+",VALUE($N$1)-VALUE(J57),$N$1-H57))))))) -> 55 | P57: =IF(G57=0,0,IF(AND(A57<=A58,O57>0,H57<>0),Get_KeyRate(H58),Get_KeyRate($N$1))) -> 0.0425 | Q57: =IF(G57=0,0,IF(O57>0,ROUND((G57*O57*1/300*P57),2),0)) -> 1720.04 | S57: 2020-04-12 | T57: =O57-#REF! -> 
A58: 40 | B58: 130039 | G58: 130039 | I58: 2020-09-30 | J58: =WORKDAY.INTL(I58,1,1,$R$2:$R$88) -> 2020-10-01 | K58: =IF(AND(H58>J58,B58>0),H58-J58+1,0) -> 0 | L58: =IF(B58>0,ROUND((B58*K58*1/300*M58),2),0) -> 0 | M58: =IF(K58=0,0,Get_KeyRate(H58)) -> 0 | N58: =IF(AND(E58=0,F58=0,H58=0),"+","") -> + | O58: =IF(N58="+",IF(I58>$N$1,"0",IF(N58="+",VALUE($N$1)-VALUE(J58),$N$1-H58))+IF(G58=0,0,IF(AND(A58>=A59,H58>0,H59-H58),H59-H58)),IF(I58>$N$1,"0",IF(G58=0,0,IF(AND(A58>=A59,H58>0),H59-H58,IF(AND(A58<>A59,B58="",B59<>0),VALUE($N$1)-VALUE(H58),IF(A58<>A59,H58-J58,IF(N58="+",VALUE($N$1)-VALUE(J58),$N$1-H58))))))) -> 55 | P58: =IF(G58=0,0,IF(AND(A58<=A59,O58>0,H58<>0),Get_KeyRate(H59),Get_KeyRate($N$1))) -> 0.0425 | Q58: =IF(G58=0,0,IF(O58>0,ROUND((G58*O58*1/300*P58),2),0)) -> 1013.22 | S58: 2020-04-13 | T58: =O58-#REF! -> 
A59: 41 | B59: 2692844 | G59: 2692844 | I59: 2020-09-30 | J59: =WORKDAY.INTL(I59,1,1,$R$2:$R$88) -> 2020-10-01 | K59: =IF(AND(H59>J59,B59>0),H59-J59+1,0) -> 0 | L59: =IF(B59>0,ROUND((B59*K59*1/300*M59),2),0) -> 0 | M59: =IF(K59=0,0,Get_KeyRate(H59)) -> 0 | N59: =IF(AND(E59=0,F59=0,H59=0),"+","") -> + | O59: =IF(N59="+",IF(I59>$N$1,"0",IF(N59="+",VALUE($N$1)-VALUE(J59),$N$1-H59))+IF(G59=0,0,IF(AND(A59>=A60,H59>0,H60-H59),H60-H59)),IF(I59>$N$1,"0",IF(G59=0,0,IF(AND(A59>=A60,H59>0),H60-H59,IF(AND(A59<>A60,B59="",B60<>0),VALUE($N$1)-VALUE(H59),IF(A59<>A60,H59-J59,IF(N59="+",VALUE($N$1)-VALUE(J59),$N$1-H59))))))) -> 55 | P59: =IF(G59=0,0,IF(AND(A59<=A60,O59>0,H59<>0),Get_KeyRate(H60),Get_KeyRate($N$1))) -> 0.0425 | Q59: =IF(G59=0,0,IF(O59>0,ROUND((G59*O59*1/300*P59),2),0)) -> 20981.74 | S59: 2020-04-14 | T59: =O59-#REF! -> 
A60: 42 | B60: 2947091 | G60: 2947091 | I60: 2020-10-31 | J60: =WORKDAY.INTL(I60,1,1,$R$2:$R$88) -> 2020-11-02 | K60: =IF(AND(H60>J60,B60>0),H60-J60+1,0) -> 0 | L60: =IF(B60>0,ROUND((B60*K60*1/300*M60),2),0) -> 0 | M60: =IF(K60=0,0,Get_KeyRate(H60)) -> 0 | N60: =IF(AND(E60=0,F60=0,H60=0),"+","") -> + | O60: =IF(N60="+",IF(I60>$N$1,"0",IF(N60="+",VALUE($N$1)-VALUE(J60),$N$1-H60))+IF(G60=0,0,IF(AND(A60>=A61,H60>0,H61-H60),H61-H60)),IF(I60>$N$1,"0",IF(G60=0,0,IF(AND(A60>=A61,H60>0),H61-H60,IF(AND(A60<>A61,B60="",B61<>0),VALUE($N$1)-VALUE(H60),IF(A60<>A61,H60-J60,IF(N60="+",VALUE($N$1)-VALUE(J60),$N$1-H60))))))) -> 23 | P60: =IF(G60=0,0,IF(AND(A60<=A61,O60>0,H60<>0),Get_KeyRate(H61),Get_KeyRate($N$1))) -> 0.0425 | Q60: =IF(G60=0,0,IF(O60>0,ROUND((G60*O60*1/300*P60),2),0)) -> 9602.6 | S60: 2020-04-15 | T60: =O60-#REF! -> 
A61: 43 | B61: 151713 | G61: 151713 | I61: 2020-10-31 | J61: =WORKDAY.INTL(I61,1,1,$R$2:$R$88) -> 2020-11-02 | K61: =IF(AND(H61>J61,B61>0),H61-J61+1,0) -> 0 | L61: =IF(B61>0,ROUND((B61*K61*1/300*M61),2),0) -> 0 | M61: =IF(K61=0,0,Get_KeyRate(H61)) -> 0 | N61: =IF(AND(E61=0,F61=0,H61=0),"+","") -> + | O61: =IF(N61="+",IF(I61>$N$1,"0",IF(N61="+",VALUE($N$1)-VALUE(J61),$N$1-H61))+IF(G61=0,0,IF(AND(A61>=A62,H61>0,H62-H61),H62-H61)),IF(I61>$N$1,"0",IF(G61=0,0,IF(AND(A61>=A62,H61>0),H62-H61,IF(AND(A61<>A62,B61="",B62<>0),VALUE($N$1)-VALUE(H61),IF(A61<>A62,H61-J61,IF(N61="+",VALUE($N$1)-VALUE(J61),$N$1-H61))))))) -> 23 | P61: =IF(G61=0,0,IF(AND(A61<=A62,O61>0,H61<>0),Get_KeyRate(H62),Get_KeyRate($N$1))) -> 0.0425 | Q61: =IF(G61=0,0,IF(O61>0,ROUND((G61*O61*1/300*P61),2),0)) -> 494.33 | S61: 2020-04-16 | T61: =O61-#REF! -> 
A62: 44 | B62: 709076 | G62: 709076 | I62: 2020-10-31 | J62: =WORKDAY.INTL(I62,1,1,$R$2:$R$88) -> 2020-11-02 | K62: =IF(AND(H62>J62,B62>0),H62-J62+1,0) -> 0 | L62: =IF(B62>0,ROUND((B62*K62*1/300*M62),2),0) -> 0 | M62: =IF(K62=0,0,Get_KeyRate(H62)) -> 0 | N62: =IF(AND(E62=0,F62=0,H62=0),"+","") -> + | O62: =IF(N62="+",IF(I62>$N$1,"0",IF(N62="+",VALUE($N$1)-VALUE(J62),$N$1-H62))+IF(G62=0,0,IF(AND(A62>=A63,H62>0,H63-H62),H63-H62)),IF(I62>$N$1,"0",IF(G62=0,0,IF(AND(A62>=A63,H62>0),H63-H62,IF(AND(A62<>A63,B62="",B63<>0),VALUE($N$1)-VALUE(H62),IF(A62<>A63,H62-J62,IF(N62="+",VALUE($N$1)-VALUE(J62),$N$1-H62))))))) -> 23 | P62: =IF(G62=0,0,IF(AND(A62<=A63,O62>0,H62<>0),Get_KeyRate(H63),Get_KeyRate($N$1))) -> 0.0425 | Q62: =IF(G62=0,0,IF(O62>0,ROUND((G62*O62*1/300*P62),2),0)) -> 2310.41 | S62: 2020-04-17 | T62: =O62-#REF! -> 
A63: 45 | B63: 2642410 | G63: 2642410 | I63: 2020-10-31 | J63: =WORKDAY.INTL(I63,1,1,$R$2:$R$88) -> 2020-11-02 | K63: =IF(AND(H63>J63,B63>0),H63-J63+1,0) -> 0 | L63: =IF(B63>0,ROUND((B63*K63*1/300*M63),2),0) -> 0 | M63: =IF(K63=0,0,Get_KeyRate(H63)) -> 0 | N63: =IF(AND(E63=0,F63=0,H63=0),"+","") -> + | O63: =IF(N63="+",IF(I63>$N$1,"0",IF(N63="+",VALUE($N$1)-VALUE(J63),$N$1-H63))+IF(G63=0,0,IF(AND(A63>=A64,H63>0,H64-H63),H64-H63)),IF(I63>$N$1,"0",IF(G63=0,0,IF(AND(A63>=A64,H63>0),H64-H63,IF(AND(A63<>A64,B63="",B64<>0),VALUE($N$1)-VALUE(H63),IF(A63<>A64,H63-J63,IF(N63="+",VALUE($N$1)-VALUE(J63),$N$1-H63))))))) -> 23 | P63: =IF(G63=0,0,IF(AND(A63<=A64,O63>0,H63<>0),Get_KeyRate(H64),Get_KeyRate($N$1))) -> 0.0425 | Q63: =IF(G63=0,0,IF(O63>0,ROUND((G63*O63*1/300*P63),2),0)) -> 8609.85 | S63: 2020-04-18 | T63: =O63-#REF! -> 
A64: 46 | B64: 151661 | G64: 151661 | I64: 2020-10-31 | J64: =WORKDAY.INTL(I64,1,1,$R$2:$R$88) -> 2020-11-02 | K64: =IF(AND(H64>J64,B64>0),H64-J64+1,0) -> 0 | L64: =IF(B64>0,ROUND((B64*K64*1/300*M64),2),0) -> 0 | M64: =IF(K64=0,0,Get_KeyRate(H64)) -> 0 | N64: =IF(AND(E64=0,F64=0,H64=0),"+","") -> + | O64: =IF(N64="+",IF(I64>$N$1,"0",IF(N64="+",VALUE($N$1)-VALUE(J64),$N$1-H64))+IF(G64=0,0,IF(AND(A64>=A65,H64>0,H65-H64),H65-H64)),IF(I64>$N$1,"0",IF(G64=0,0,IF(AND(A64>=A65,H64>0),H65-H64,IF(AND(A64<>A65,B64="",B65<>0),VALUE($N$1)-VALUE(H64),IF(A64<>A65,H64-J64,IF(N64="+",VALUE($N$1)-VALUE(J64),$N$1-H64))))))) -> 23 | P64: =IF(G64=0,0,IF(AND(A64<=A65,O64>0,H64<>0),Get_KeyRate(H65),Get_KeyRate($N$1))) -> 0.0425 | Q64: =IF(G64=0,0,IF(O64>0,ROUND((G64*O64*1/300*P64),2),0)) -> 494.16 | S64: 2020-04-19 | T64: =O64-#REF! -> 
A65: 47 | B65: 77993 | G65: 77993 | I65: 2020-10-31 | J65: =WORKDAY.INTL(I65,1,1,$R$2:$R$88) -> 2020-11-02 | K65: =IF(AND(H65>J65,B65>0),H65-J65+1,0) -> 0 | L65: =IF(B65>0,ROUND((B65*K65*1/300*M65),2),0) -> 0 | M65: =IF(K65=0,0,Get_KeyRate(H65)) -> 0 | N65: =IF(AND(E65=0,F65=0,H65=0),"+","") -> + | O65: =IF(N65="+",IF(I65>$N$1,"0",IF(N65="+",VALUE($N$1)-VALUE(J65),$N$1-H65))+IF(G65=0,0,IF(AND(A65>=A66,H65>0,H66-H65),H66-H65)),IF(I65>$N$1,"0",IF(G65=0,0,IF(AND(A65>=A66,H65>0),H66-H65,IF(AND(A65<>A66,B65="",B66<>0),VALUE($N$1)-VALUE(H65),IF(A65<>A66,H65-J65,IF(N65="+",VALUE($N$1)-VALUE(J65),$N$1-H65))))))) -> 23 | P65: =IF(G65=0,0,IF(AND(A65<=A66,O65>0,H65<>0),Get_KeyRate(H66),Get_KeyRate($N$1))) -> 0.0425 | Q65: =IF(G65=0,0,IF(O65>0,ROUND((G65*O65*1/300*P65),2),0)) -> 254.13 | S65: 2020-04-20 | T65: =O65-#REF! -> 
A66: 48 | B66: 1290302 | G66: =ROUND(IF(B66>0,B66-F66,G65-F66),2) -> 1290302 | I66: 2020-10-31 | J66: =WORKDAY.INTL(I66,1,1,$R$2:$R$88) -> 2020-11-02 | K66: =IF(AND(H66>J66,B66>0),H66-J66+1,0) -> 0 | L66: =IF(B66>0,ROUND((B66*K66*1/300*M66),2),0) -> 0 | M66: =IF(K66=0,0,Get_KeyRate(H66)) -> 0 | N66: =IF(AND(E66=0,F66=0,H66=0),"+","") -> + | O66: =IF(N66="+",IF(I66>$N$1,"0",IF(N66="+",VALUE($N$1)-VALUE(J66),$N$1-H66))+IF(G66=0,0,IF(AND(A66>=A67,H66>0,H67-H66),H67-H66)),IF(I66>$N$1,"0",IF(G66=0,0,IF(AND(A66>=A67,H66>0),H67-H66,IF(AND(A66<>A67,B66="",B67<>0),VALUE($N$1)-VALUE(H66),IF(A66<>A67,H66-J66,IF(N66="+",VALUE($N$1)-VALUE(J66),$N$1-H66))))))) -> 23 | P66: =IF(G66=0,0,IF(AND(A66<=A67,O66>0,H66<>0),Get_KeyRate(H67),Get_KeyRate($N$1))) -> 0.0425 | Q66: =IF(G66=0,0,IF(O66>0,ROUND((G66*O66*1/300*P66),2),0)) -> 4204.23 | S66: 2020-04-21 | T66: =O66-#REF! -> 
A67: 49 | B67: 613132 | G67: 613132 | I67: 2020-10-31 | J67: =WORKDAY.INTL(I67,1,1,$R$2:$R$88) -> 2020-11-02 | K67: =IF(AND(H67>J67,B67>0),H67-J67+1,0) -> 0 | L67: =IF(B67>0,ROUND((B67*K67*1/300*M67),2),0) -> 0 | M67: =IF(K67=0,0,Get_KeyRate(H67)) -> 0 | N67: =IF(AND(E67=0,F67=0,H67=0),"+","") -> + | O67: =IF(N67="+",IF(I67>$N$1,"0",IF(N67="+",VALUE($N$1)-VALUE(J67),$N$1-H67))+IF(G67=0,0,IF(AND(A67>=A68,H67>0,H68-H67),H68-H67)),IF(I67>$N$1,"0",IF(G67=0,0,IF(AND(A67>=A68,H67>0),H68-H67,IF(AND(A67<>A68,B67="",B68<>0),VALUE($N$1)-VALUE(H67),IF(A67<>A68,H67-J67,IF(N67="+",VALUE($N$1)-VALUE(J67),$N$1-H67))))))) -> 23 | P67: =IF(G67=0,0,IF(AND(A67<=A68,O67>0,H67<>0),Get_KeyRate(H68),Get_KeyRate($N$1))) -> 0.0425 | Q67: =IF(G67=0,0,IF(O67>0,ROUND((G67*O67*1/300*P67),2),0)) -> 1997.79 | S67: 2020-04-22 | T67: =O67-#REF! -> 
A68: 50 | B68: 304143 | G68: 304143 | I68: 2020-10-31 | J68: =WORKDAY.INTL(I68,1,1,$R$2:$R$88) -> 2020-11-02 | K68: =IF(AND(H68>J68,B68>0),H68-J68+1,0) -> 0 | L68: =IF(B68>0,ROUND((B68*K68*1/300*M68),2),0) -> 0 | M68: =IF(K68=0,0,Get_KeyRate(H68)) -> 0 | N68: =IF(AND(E68=0,F68=0,H68=0),"+","") -> + | O68: =IF(N68="+",IF(I68>$N$1,"0",IF(N68="+",VALUE($N$1)-VALUE(J68),$N$1-H68))+IF(G68=0,0,IF(AND(A68>=A69,H68>0,H69-H68),H69-H68)),IF(I68>$N$1,"0",IF(G68=0,0,IF(AND(A68>=A69,H68>0),H69-H68,IF(AND(A68<>A69,B68="",B69<>0),VALUE($N$1)-VALUE(H68),IF(A68<>A69,H68-J68,IF(N68="+",VALUE($N$1)-VALUE(J68),$N$1-H68))))))) -> 23 | P68: =IF(G68=0,0,IF(AND(A68<=A69,O68>0,H68<>0),Get_KeyRate(H69),Get_KeyRate($N$1))) -> 0.0425 | Q68: =IF(G68=0,0,IF(O68>0,ROUND((G68*O68*1/300*P68),2),0)) -> 991 | S68: 2020-04-23 | T68: =O68-#REF! -> 
A69: 51 | B69: 733234 | G69: 733234 | I69: 2020-10-31 | J69: =WORKDAY.INTL(I69,1,1,$R$2:$R$88) -> 2020-11-02 | K69: =IF(AND(H69>J69,B69>0),H69-J69+1,0) -> 0 | L69: =IF(B69>0,ROUND((B69*K69*1/300*M69),2),0) -> 0 | M69: =IF(K69=0,0,Get_KeyRate(H69)) -> 0 | N69: =IF(AND(E69=0,F69=0,H69=0),"+","") -> + | O69: =IF(N69="+",IF(I69>$N$1,"0",IF(N69="+",VALUE($N$1)-VALUE(J69),$N$1-H69))+IF(G69=0,0,IF(AND(A69>=A70,H69>0,H70-H69),H70-H69)),IF(I69>$N$1,"0",IF(G69=0,0,IF(AND(A69>=A70,H69>0),H70-H69,IF(AND(A69<>A70,B69="",B70<>0),VALUE($N$1)-VALUE(H69),IF(A69<>A70,H69-J69,IF(N69="+",VALUE($N$1)-VALUE(J69),$N$1-H69))))))) -> 23 | P69: =IF(G69=0,0,IF(AND(A69<=A70,O69>0,H69<>0),Get_KeyRate(H70),Get_KeyRate($N$1))) -> 0.0425 | Q69: =IF(G69=0,0,IF(O69>0,ROUND((G69*O69*1/300*P69),2),0)) -> 2389.12 | S69: 2020-04-24 | T69: =O69-#REF! -> 
A70: 52 | B70: 2126970 | G70: 2126970 | I70: 2020-10-31 | J70: =WORKDAY.INTL(I70,1,1,$R$2:$R$88) -> 2020-11-02 | K70: =IF(AND(H70>J70,B70>0),H70-J70+1,0) -> 0 | L70: =IF(B70>0,ROUND((B70*K70*1/300*M70),2),0) -> 0 | M70: =IF(K70=0,0,Get_KeyRate(H70)) -> 0 | N70: =IF(AND(E70=0,F70=0,H70=0),"+","") -> + | O70: =IF(N70="+",IF(I70>$N$1,"0",IF(N70="+",VALUE($N$1)-VALUE(J70),$N$1-H70))+IF(G70=0,0,IF(AND(A70>=A71,H70>0,H71-H70),H71-H70)),IF(I70>$N$1,"0",IF(G70=0,0,IF(AND(A70>=A71,H70>0),H71-H70,IF(AND(A70<>A71,B70="",B71<>0),VALUE($N$1)-VALUE(H70),IF(A70<>A71,H70-J70,IF(N70="+",VALUE($N$1)-VALUE(J70),$N$1-H70))))))) -> 23 | P70: =IF(G70=0,0,IF(AND(A70<=A71,O70>0,H70<>0),Get_KeyRate(H71),Get_KeyRate($N$1))) -> 0.0425 | Q70: =IF(G70=0,0,IF(O70>0,ROUND((G70*O70*1/300*P70),2),0)) -> 6930.38 | S70: 2020-04-25 | T70: =O70-#REF! -> 
A71: 53 | B71: 1067534 | G71: 1067534 | I71: 2020-11-30 | J71: 2020-12-01 | K71: =IF(AND(H71>J71,B71>0),H71-J71+1,0) -> 0 | L71: =IF(B71>0,ROUND((B71*K71*1/300*M71),2),0) -> 0 | M71: =IF(K71=0,0,Get_KeyRate(H71)) -> 0 | N71: =IF(AND(E71=0,F71=0,H71=0),"+","") -> + | O71: =IF(N71="+",IF(I71>$N$1,"0",IF(N71="+",VALUE($N$1)-VALUE(J71),$N$1-H71))+IF(G71=0,0,IF(AND(A71>=A72,H71>0,H72-H71),H72-H71)),IF(I71>$N$1,"0",IF(G71=0,0,IF(AND(A71>=A72,H71>0),H72-H71,IF(AND(A71<>A72,B71="",B72<>0),VALUE($N$1)-VALUE(H71),IF(A71<>A72,H71-J71,IF(N71="+",VALUE($N$1)-VALUE(J71),$N$1-H71))))))) -> 0 | P71: =IF(G71=0,0,IF(AND(A71<=A72,O71>0,H71<>0),Get_KeyRate(H72),Get_KeyRate($N$1))) -> 0.0425 | Q71: =IF(G71=0,0,IF(O71>0,ROUND((G71*O71*1/300*P71),2),0)) -> 0 | S71: 2020-04-26 | T71: =O71-#REF! -> 
A72: 54 | B72: 5044770 | G72: 5044770 | I72: 2020-11-30 | J72: 2020-12-01 | K72: =IF(AND(H72>J72,B72>0),H72-J72+1,0) -> 0 | L72: =IF(B72>0,ROUND((B72*K72*1/300*M72),2),0) -> 0 | M72: =IF(K72=0,0,Get_KeyRate(H72)) -> 0 | N72: =IF(AND(E72=0,F72=0,H72=0),"+","") -> + | O72: =IF(N72="+",IF(I72>$N$1,"0",IF(N72="+",VALUE($N$1)-VALUE(J72),$N$1-H72))+IF(G72=0,0,IF(AND(A72>=A73,H72>0,H73-H72),H73-H72)),IF(I72>$N$1,"0",IF(G72=0,0,IF(AND(A72>=A73,H72>0),H73-H72,IF(AND(A72<>A73,B72="",B73<>0),VALUE($N$1)-VALUE(H72),IF(A72<>A73,H72-J72,IF(N72="+",VALUE($N$1)-VALUE(J72),$N$1-H72))))))) -> 0 | P72: =IF(G72=0,0,IF(AND(A72<=A73,O72>0,H72<>0),Get_KeyRate(H73),Get_KeyRate($N$1))) -> 0.0425 | Q72: =IF(G72=0,0,IF(O72>0,ROUND((G72*O72*1/300*P72),2),0)) -> 0 | S72: 2020-04-27 | T72: =O72-#REF! -> 
A73: 55 | B73: 427621 | G73: 427621 | I73: 2020-11-30 | J73: 2020-12-01 | K73: =IF(AND(H73>J73,B73>0),H73-J73+1,0) -> 0 | L73: =IF(B73>0,ROUND((B73*K73*1/300*M73),2),0) -> 0 | M73: =IF(K73=0,0,Get_KeyRate(H73)) -> 0 | N73: =IF(AND(E73=0,F73=0,H73=0),"+","") -> + | O73: =IF(N73="+",IF(I73>$N$1,"0",IF(N73="+",VALUE($N$1)-VALUE(J73),$N$1-H73))+IF(G73=0,0,IF(AND(A73>=A74,H73>0,H74-H73),H74-H73)),IF(I73>$N$1,"0",IF(G73=0,0,IF(AND(A73>=A74,H73>0),H74-H73,IF(AND(A73<>A74,B73="",B74<>0),VALUE($N$1)-VALUE(H73),IF(A73<>A74,H73-J73,IF(N73="+",VALUE($N$1)-VALUE(J73),$N$1-H73))))))) -> 0 | P73: =IF(G73=0,0,IF(AND(A73<=A74,O73>0,H73<>0),Get_KeyRate(H74),Get_KeyRate($N$1))) -> 0.0425 | Q73: =IF(G73=0,0,IF(O73>0,ROUND((G73*O73*1/300*P73),2),0)) -> 0 | S73: 2020-04-28 | T73: =O73-#REF! -> 
A74: 56 | B74: 134723 | G74: 134723 | I74: 2020-11-30 | J74: 2020-12-01 | K74: =IF(AND(H74>J74,B74>0),H74-J74+1,0) -> 0 | L74: =IF(B74>0,ROUND((B74*K74*1/300*M74),2),0) -> 0 | M74: =IF(K74=0,0,Get_KeyRate(H74)) -> 0 | N74: =IF(AND(E74=0,F74=0,H74=0),"+","") -> + | O74: =IF(N74="+",IF(I74>$N$1,"0",IF(N74="+",VALUE($N$1)-VALUE(J74),$N$1-H74))+IF(G74=0,0,IF(AND(A74>=A75,H74>0,H75-H74),H75-H74)),IF(I74>$N$1,"0",IF(G74=0,0,IF(AND(A74>=A75,H74>0),H75-H74,IF(AND(A74<>A75,B74="",B75<>0),VALUE($N$1)-VALUE(H74),IF(A74<>A75,H74-J74,IF(N74="+",VALUE($N$1)-VALUE(J74),$N$1-H74))))))) -> 0 | P74: =IF(G74=0,0,IF(AND(A74<=A75,O74>0,H74<>0),Get_KeyRate(H75),Get_KeyRate($N$1))) -> 0.0425 | Q74: =IF(G74=0,0,IF(O74>0,ROUND((G74*O74*1/300*P74),2),0)) -> 0 | S74: 2020-04-29 | T74: =O74-#REF! -> 
A75: 57 | B75: 23508 | G75: 23508 | I75: 2020-11-30 | J75: 2020-12-01 | K75: =IF(AND(H75>J75,B75>0),H75-J75+1,0) -> 0 | L75: =IF(B75>0,ROUND((B75*K75*1/300*M75),2),0) -> 0 | M75: =IF(K75=0,0,Get_KeyRate(H75)) -> 0 | N75: =IF(AND(E75=0,F75=0,H75=0),"+","") -> + | O75: =IF(N75="+",IF(I75>$N$1,"0",IF(N75="+",VALUE($N$1)-VALUE(J75),$N$1-H75))+IF(G75=0,0,IF(AND(A75>=A76,H75>0,H76-H75),H76-H75)),IF(I75>$N$1,"0",IF(G75=0,0,IF(AND(A75>=A76,H75>0),H76-H75,IF(AND(A75<>A76,B75="",B76<>0),VALUE($N$1)-VALUE(H75),IF(A75<>A76,H75-J75,IF(N75="+",VALUE($N$1)-VALUE(J75),$N$1-H75))))))) -> 0 | P75: =IF(G75=0,0,IF(AND(A75<=A76,O75>0,H75<>0),Get_KeyRate(H76),Get_KeyRate($N$1))) -> 0.0425 | Q75: =IF(G75=0,0,IF(O75>0,ROUND((G75*O75*1/300*P75),2),0)) -> 0 | S75: 2020-04-30 | T75: =O75-#REF! -> 
A76: 58 | B76: 1563550 | C76: 58/1 | D76: от | E76: 2020-06-11 | F76: 515787.6 | G76: 1047762.4 | H76: 2020-06-15 | I76: 2020-11-30 | J76: 2020-12-01 | K76: =IF(AND(H76>J76,B76>0),H76-J76+1,0) -> 0 | L76: =IF(B76>0,ROUND((B76*K76*1/300*M76),2),0) -> 0 | M76: =IF(K76=0,0,Get_KeyRate(H76)) -> 0 | N76: =IF(AND(E76=0,F76=0,H76=0),"+","") ->  | O76: =IF(N76="+",IF(I76>$N$1,"0",IF(N76="+",VALUE($N$1)-VALUE(J76),$N$1-H76))+IF(G76=0,0,IF(AND(A76>=A77,H76>0,H77-H76),H77-H76)),IF(I76>$N$1,"0",IF(G76=0,0,IF(AND(A76>=A77,H76>0),H77-H76,IF(AND(A76<>A77,B76="",B77<>0),VALUE($N$1)-VALUE(H76),IF(A76<>A77,H76-J76,IF(N76="+",VALUE($N$1)-VALUE(J76),$N$1-H76))))))) -> 0 | P76: =IF(G76=0,0,IF(AND(A76<=A77,O76>0,H76<>0),Get_KeyRate(H77),Get_KeyRate($N$1))) -> 0.0425 | Q76: =IF(G76=0,0,IF(O76>0,ROUND((G76*O76*1/300*P76),2),0)) -> 0 | R76: 2020-05-01 | S76: День труда | T76: =O76-#REF! -> 
A77: 59 | B77: 422081 | G77: 422081 | I77: 2020-11-30 | J77: 2020-12-01 | K77: =IF(AND(H77>J77,B77>0),H77-J77+1,0) -> 0 | L77: =IF(B77>0,ROUND((B77*K77*1/300*M77),2),0) -> 0 | M77: =IF(K77=0,0,Get_KeyRate(H77)) -> 0 | N77: =IF(AND(E77=0,F77=0,H77=0),"+","") -> + | O77: =IF(N77="+",IF(I77>$N$1,"0",IF(N77="+",VALUE($N$1)-VALUE(J77),$N$1-H77))+IF(G77=0,0,IF(AND(A77>=A78,H77>0,H78-H77),H78-H77)),IF(I77>$N$1,"0",IF(G77=0,0,IF(AND(A77>=A78,H77>0),H78-H77,IF(AND(A77<>A78,B77="",B78<>0),VALUE($N$1)-VALUE(H77),IF(A77<>A78,H77-J77,IF(N77="+",VALUE($N$1)-VALUE(J77),$N$1-H77))))))) -> 0 | P77: =IF(G77=0,0,IF(AND(A77<=A78,O77>0,H77<>0),Get_KeyRate(H78),Get_KeyRate($N$1))) -> 0.0425 | Q77: =IF(G77=0,0,IF(O77>0,ROUND((G77*O77*1/300*P77),2),0)) -> 0 | R77: 2020-05-02 | T77: =O77-#REF! -> 
A78: 60 | B78: 137670 | G78: 137670 | I78: 2020-11-30 | J78: 2020-12-01 | K78: =IF(AND(H78>J78,B78>0),H78-J78+1,0) -> 0 | L78: =IF(B78>0,ROUND((B78*K78*1/300*M78),2),0) -> 0 | M78: =IF(K78=0,0,Get_KeyRate(H78)) -> 0 | N78: =IF(AND(E78=0,F78=0,H78=0),"+","") -> + | O78: =IF(N78="+",IF(I78>$N$1,"0",IF(N78="+",VALUE($N$1)-VALUE(J78),$N$1-H78))+IF(G78=0,0,IF(AND(A78>=A79,H78>0,H79-H78),H79-H78)),IF(I78>$N$1,"0",IF(G78=0,0,IF(AND(A78>=A79,H78>0),H79-H78,IF(AND(A78<>A79,B78="",B79<>0),VALUE($N$1)-VALUE(H78),IF(A78<>A79,H78-J78,IF(N78="+",VALUE($N$1)-VALUE(J78),$N$1-H78))))))) -> 0 | P78: =IF(G78=0,0,IF(AND(A78<=A79,O78>0,H78<>0),Get_KeyRate(H79),Get_KeyRate($N$1))) -> 0.0425 | Q78: =IF(G78=0,0,IF(O78>0,ROUND((G78*O78*1/300*P78),2),0)) -> 0 | R78: 2020-05-03 | T78: =O78-#REF! -> 
A79: 61 | B79: 1834890 | G79: 1834890 | I79: 2020-12-31 | J79: 2021-01-01 | K79: =IF(AND(H79>J79,B79>0),H79-J79+1,0) -> 0 | L79: =IF(B79>0,ROUND((B79*K79*1/300*M79),2),0) -> 0 | M79: =IF(K79=0,0,Get_KeyRate(H79)) -> 0 | N79: =IF(AND(E79=0,F79=0,H79=0),"+","") -> + | O79: =IF(N79="+",IF(I79>$N$1,"0",IF(N79="+",VALUE($N$1)-VALUE(J79),$N$1-H79))+IF(G79=0,0,IF(AND(A79>=A80,H79>0,H80-H79),H80-H79)),IF(I79>$N$1,"0",IF(G79=0,0,IF(AND(A79>=A80,H79>0),H80-H79,IF(AND(A79<>A80,B79="",B80<>0),VALUE($N$1)-VALUE(H79),IF(A79<>A80,H79-J79,IF(N79="+",VALUE($N$1)-VALUE(J79),$N$1-H79))))))) -> 0 | P79: =IF(G79=0,0,IF(AND(A79<=A80,O79>0,H79<>0),Get_KeyRate(H80),Get_KeyRate($N$1))) -> 0.0425 | Q79: =IF(G79=0,0,IF(O79>0,ROUND((G79*O79*1/300*P79),2),0)) -> 0 | R79: 2020-05-04 | T79: =O79-#REF! -> 
A80: 62 | B80: 1470679 | G80: 1470679 | I80: 2020-12-31 | J80: 2021-01-01 | K80: =IF(AND(H80>J80,B80>0),H80-J80+1,0) -> 0 | L80: =IF(B80>0,ROUND((B80*K80*1/300*M80),2),0) -> 0 | M80: =IF(K80=0,0,Get_KeyRate(H80)) -> 0 | N80: + | O80: =IF(N80="+",IF(I80>$N$1,"0",IF(N80="+",VALUE($N$1)-VALUE(J80),$N$1-H80))+IF(G80=0,0,IF(AND(A80>=A81,H80>0,H81-H80),H81-H80)),IF(I80>$N$1,"0",IF(G80=0,0,IF(AND(A80>=A81,H80>0),H81-H80,IF(AND(A80<>A81,B80="",B81<>0),VALUE($N$1)-VALUE(H80),IF(A80<>A81,H80-J80,IF(N80="+",VALUE($N$1)-VALUE(J80),$N$1-H80))))))) -> 0 | P80: =IF(G80=0,0,IF(AND(A80<=A81,O80>0,H80<>0),Get_KeyRate(H81),Get_KeyRate($N$1))) -> 0.0425 | Q80: =IF(G80=0,0,IF(O80>0,ROUND((G80*O80*1/300*P80),2),0)) -> 0 | R80: 2020-05-05 | T80: =O80-#REF! -> 
A81: 63 | B81: 723560 | G81: 723560 | I81: 2020-12-31 | J81: 2021-01-01 | K81: =IF(AND(H81>J81,B81>0),H81-J81+1,0) -> 0 | L81: =IF(B81>0,ROUND((B81*K81*1/300*M81),2),0) -> 0 | M81: =IF(K81=0,0,Get_KeyRate(H81)) -> 0 | N81: + | O81: =IF(N81="+",IF(I81>$N$1,"0",IF(N81="+",VALUE($N$1)-VALUE(J81),$N$1-H81))+IF(G81=0,0,IF(AND(A81>=A82,H81>0,H82-H81),H82-H81)),IF(I81>$N$1,"0",IF(G81=0,0,IF(AND(A81>=A82,H81>0),H82-H81,IF(AND(A81<>A82,B81="",B82<>0),VALUE($N$1)-VALUE(H81),IF(A81<>A82,H81-J81,IF(N81="+",VALUE($N$1)-VALUE(J81),$N$1-H81))))))) -> 0 | P81: =IF(G81=0,0,IF(AND(A81<=A82,O81>0,H81<>0),Get_KeyRate(H82),Get_KeyRate($N$1))) -> 0.0425 | Q81: =IF(G81=0,0,IF(O81>0,ROUND((G81*O81*1/300*P81),2),0)) -> 0 | R81: 2020-05-09 | S81: День победы | T81: =O81-#REF! -> 
A82: 64 | B82: 1527208 | G82: 1527208 | I82: 2020-12-31 | J82: 2021-01-01 | K82: =IF(AND(H82>J82,B82>0),H82-J82+1,0) -> 0 | L82: =IF(B82>0,ROUND((B82*K82*1/300*M82),2),0) -> 0 | M82: =IF(K82=0,0,Get_KeyRate(H82)) -> 0 | N82: + | O82: =IF(N82="+",IF(I82>$N$1,"0",IF(N82="+",VALUE($N$1)-VALUE(J82),$N$1-H82))+IF(G82=0,0,IF(AND(A82>=A83,H82>0,H83-H82),H83-H82)),IF(I82>$N$1,"0",IF(G82=0,0,IF(AND(A82>=A83,H82>0),H83-H82,IF(AND(A82<>A83,B82="",B83<>0),VALUE($N$1)-VALUE(H82),IF(A82<>A83,H82-J82,IF(N82="+",VALUE($N$1)-VALUE(J82),$N$1-H82))))))) -> 0 | P82: =IF(G82=0,0,IF(AND(A82<=A83,O82>0,H82<>0),Get_KeyRate(H83),Get_KeyRate($N$1))) -> 0.0425 | Q82: =IF(G82=0,0,IF(O82>0,ROUND((G82*O82*1/300*P82),2),0)) -> 0 | R82: 2020-05-10 | T82: =O82-#REF! -> 
A83: 65 | B83: 192440 | G83: 192440 | I83: 2020-12-31 | J83: 2021-01-01 | K83: =IF(AND(H83>J83,B83>0),H83-J83+1,0) -> 0 | L83: =IF(B83>0,ROUND((B83*K83*1/300*M83),2),0) -> 0 | M83: =IF(K83=0,0,Get_KeyRate(H83)) -> 0 | N83: + | O83: =IF(N83="+",IF(I83>$N$1,"0",IF(N83="+",VALUE($N$1)-VALUE(J83),$N$1-H83))+IF(G83=0,0,IF(AND(A83>=A84,H83>0,H84-H83),H84-H83)),IF(I83>$N$1,"0",IF(G83=0,0,IF(AND(A83>=A84,H83>0),H84-H83,IF(AND(A83<>A84,B83="",B84<>0),VALUE($N$1)-VALUE(H83),IF(A83<>A84,H83-J83,IF(N83="+",VALUE($N$1)-VALUE(J83),$N$1-H83))))))) -> 0 | P83: =IF(G83=0,0,IF(AND(A83<=A84,O83>0,H83<>0),Get_KeyRate(H84),Get_KeyRate($N$1))) -> 0.0425 | Q83: =IF(G83=0,0,IF(O83>0,ROUND((G83*O83*1/300*P83),2),0)) -> 0 | R83: 2020-05-11 | T83: =O83-#REF! -> 
A84: 66 | B84: 6497144 | G84: 6497144 | I84: 2020-12-31 | J84: 2021-01-01 | K84: =IF(AND(H84>J84,B84>0),H84-J84+1,0) -> 0 | L84: =IF(B84>0,ROUND((B84*K84*1/300*M84),2),0) -> 0 | M84: =IF(K84=0,0,Get_KeyRate(H84)) -> 0 | N84: + | O84: =IF(N84="+",IF(I84>$N$1,"0",IF(N84="+",VALUE($N$1)-VALUE(J84),$N$1-H84))+IF(G84=0,0,IF(AND(A84>=A85,H84>0,H85-H84),H85-H84)),IF(I84>$N$1,"0",IF(G84=0,0,IF(AND(A84>=A85,H84>0),H85-H84,IF(AND(A84<>A85,B84="",B85<>0),VALUE($N$1)-VALUE(H84),IF(A84<>A85,H84-J84,IF(N84="+",VALUE($N$1)-VALUE(J84),$N$1-H84))))))) -> 0 | P84: =IF(G84=0,0,IF(AND(A84<=A85,O84>0,H84<>0),Get_KeyRate(H85),Get_KeyRate($N$1))) -> 0.0425 | Q84: =IF(G84=0,0,IF(O84>0,ROUND((G84*O84*1/300*P84),2),0)) -> 0 | R84: 2020-06-12 | S84: День России | T84: =O84-#REF! -> 
A85: 67 | B85: 52577 | G85: 52577 | I85: 2020-12-31 | J85: 2021-01-01 | K85: =IF(AND(H85>J85,B85>0),H85-J85+1,0) -> 0 | L85: =IF(B85>0,ROUND((B85*K85*1/300*M85),2),0) -> 0 | M85: =IF(K85=0,0,Get_KeyRate(H85)) -> 0 | N85: + | O85: =IF(N85="+",IF(I85>$N$1,"0",IF(N85="+",VALUE($N$1)-VALUE(J85),$N$1-H85))+IF(G85=0,0,IF(AND(A85>=A86,H85>0,H86-H85),H86-H85)),IF(I85>$N$1,"0",IF(G85=0,0,IF(AND(A85>=A86,H85>0),H86-H85,IF(AND(A85<>A86,B85="",B86<>0),VALUE($N$1)-VALUE(H85),IF(A85<>A86,H85-J85,IF(N85="+",VALUE($N$1)-VALUE(J85),$N$1-H85))))))) -> 0 | P85: =IF(G85=0,0,IF(AND(A85<=A86,O85>0,H85<>0),Get_KeyRate(H86),Get_KeyRate($N$1))) -> 0.0425 | Q85: =IF(G85=0,0,IF(O85>0,ROUND((G85*O85*1/300*P85),2),0)) -> 0 | R85: 2020-06-13 | T85: =O85-#REF! -> 
A86: 68 | B86: 60854 | G86: 60854 | I86: 2020-12-31 | J86: 2021-01-01 | K86: =IF(AND(H86>J86,B86>0),H86-J86+1,0) -> 0 | L86: =IF(B86>0,ROUND((B86*K86*1/300*M86),2),0) -> 0 | M86: =IF(K86=0,0,Get_KeyRate(H86)) -> 0 | N86: + | O86: =IF(N86="+",IF(I86>$N$1,"0",IF(N86="+",VALUE($N$1)-VALUE(J86),$N$1-H86))+IF(G86=0,0,IF(AND(A86>=A87,H86>0,H87-H86),H87-H86)),IF(I86>$N$1,"0",IF(G86=0,0,IF(AND(A86>=A87,H86>0),H87-H86,IF(AND(A86<>A87,B86="",B87<>0),VALUE($N$1)-VALUE(H86),IF(A86<>A87,H86-J86,IF(N86="+",VALUE($N$1)-VALUE(J86),$N$1-H86))))))) -> 0 | P86: =IF(G86=0,0,IF(AND(A86<=A87,O86>0,H86<>0),Get_KeyRate(H87),Get_KeyRate($N$1))) -> 0.0425 | Q86: =IF(G86=0,0,IF(O86>0,ROUND((G86*O86*1/300*P86),2),0)) -> 0 | R86: 2020-06-14 | T86: =O86-#REF! -> 
A87: 69 | B87: 34774 | G87: 34774 | I87: 2021-01-31 | J87: 2021-02-01 | K87: =IF(AND(H87>J87,B87>0),H87-J87+1,0) -> 0 | L87: =IF(B87>0,ROUND((B87*K87*1/300*M87),2),0) -> 0 | M87: =IF(K87=0,0,Get_KeyRate(H87)) -> 0 | N87: + | O87: =IF(N87="+",IF(I87>$N$1,"0",IF(N87="+",VALUE($N$1)-VALUE(J87),$N$1-H87))+IF(G87=0,0,IF(AND(A87>=A88,H87>0,H88-H87),H88-H87)),IF(I87>$N$1,"0",IF(G87=0,0,IF(AND(A87>=A88,H87>0),H88-H87,IF(AND(A87<>A88,B87="",B88<>0),VALUE($N$1)-VALUE(H87),IF(A87<>A88,H87-J87,IF(N87="+",VALUE($N$1)-VALUE(J87),$N$1-H87))))))) -> 0 | P87: =IF(G87=0,0,IF(AND(A87<=A88,O87>0,H87<>0),Get_KeyRate(H88),Get_KeyRate($N$1))) -> 0.0425 | Q87: =IF(G87=0,0,IF(O87>0,ROUND((G87*O87*1/300*P87),2),0)) -> 0 | R87: 2020-06-24 | S87: День победы | T87: =O87-#REF! -> 
A88: 70 | B88: 226911 | G88: 226911 | I88: 2021-01-31 | J88: 2021-02-01 | K88: =IF(AND(H88>J88,B88>0),H88-J88+1,0) -> 0 | L88: =IF(B88>0,ROUND((B88*K88*1/300*M88),2),0) -> 0 | M88: =IF(K88=0,0,Get_KeyRate(H88)) -> 0 | N88: + | O88: =IF(N88="+",IF(I88>$N$1,"0",IF(N88="+",VALUE($N$1)-VALUE(J88),$N$1-H88))+IF(G88=0,0,IF(AND(A88>=A89,H88>0,H89-H88),H89-H88)),IF(I88>$N$1,"0",IF(G88=0,0,IF(AND(A88>=A89,H88>0),H89-H88,IF(AND(A88<>A89,B88="",B89<>0),VALUE($N$1)-VALUE(H88),IF(A88<>A89,H88-J88,IF(N88="+",VALUE($N$1)-VALUE(J88),$N$1-H88))))))) -> 0 | P88: =IF(G88=0,0,IF(AND(A88<=A89,O88>0,H88<>0),Get_KeyRate(H89),Get_KeyRate($N$1))) -> 0.0425 | Q88: =IF(G88=0,0,IF(O88>0,ROUND((G88*O88*1/300*P88),2),0)) -> 0 | R88: 2020-11-04 | S88: День нар. един-ва | T88: =O88-#REF! -> 
A89: 71 | B89: 67167 | G89: 67167 | I89: 2021-01-31 | J89: 2021-02-01 | K89: =IF(AND(H89>J89,B89>0),H89-J89+1,0) -> 0 | L89: =IF(B89>0,ROUND((B89*K89*1/300*M89),2),0) -> 0 | M89: =IF(K89=0,0,Get_KeyRate(H89)) -> 0 | N89: + | O89: =IF(N89="+",IF(I89>$N$1,"0",IF(N89="+",VALUE($N$1)-VALUE(J89),$N$1-H89))+IF(G89=0,0,IF(AND(A89>=A90,H89>0,H90-H89),H90-H89)),IF(I89>$N$1,"0",IF(G89=0,0,IF(AND(A89>=A90,H89>0),H90-H89,IF(AND(A89<>A90,B89="",B90<>0),VALUE($N$1)-VALUE(H89),IF(A89<>A90,H89-J89,IF(N89="+",VALUE($N$1)-VALUE(J89),$N$1-H89))))))) -> 0 | P89: =IF(G89=0,0,IF(AND(A89<=A90,O89>0,H89<>0),Get_KeyRate(H90),Get_KeyRate($N$1))) -> 0.0425 | Q89: =IF(G89=0,0,IF(O89>0,ROUND((G89*O89*1/300*P89),2),0)) -> 0 | T89: =O89-#REF! -> 
A90: 72 | B90: 78575 | G90: 78575 | I90: 2021-01-31 | J90: 2021-02-01 | K90: =IF(AND(H90>J90,B90>0),H90-J90+1,0) -> 0 | L90: =IF(B90>0,ROUND((B90*K90*1/300*M90),2),0) -> 0 | M90: =IF(K90=0,0,Get_KeyRate(H90)) -> 0 | N90: + | O90: =IF(N90="+",IF(I90>$N$1,"0",IF(N90="+",VALUE($N$1)-VALUE(J90),$N$1-H90))+IF(G90=0,0,IF(AND(A90>=A91,H90>0,H91-H90),H91-H90)),IF(I90>$N$1,"0",IF(G90=0,0,IF(AND(A90>=A91,H90>0),H91-H90,IF(AND(A90<>A91,B90="",B91<>0),VALUE($N$1)-VALUE(H90),IF(A90<>A91,H90-J90,IF(N90="+",VALUE($N$1)-VALUE(J90),$N$1-H90))))))) -> 0 | P90: =IF(G90=0,0,IF(AND(A90<=A91,O90>0,H90<>0),Get_KeyRate(H91),Get_KeyRate($N$1))) -> 0.0425 | Q90: =IF(G90=0,0,IF(O90>0,ROUND((G90*O90*1/300*P90),2),0)) -> 0 | T90: =O90-#REF! -> 
A91: 73 | B91: 160659 | G91: 160659 | I91: 2021-01-31 | J91: 2021-02-01 | K91: =IF(AND(H91>J91,B91>0),H91-J91+1,0) -> 0 | L91: =IF(B91>0,ROUND((B91*K91*1/300*M91),2),0) -> 0 | M91: =IF(K91=0,0,Get_KeyRate(H91)) -> 0 | N91: + | O91: =IF(N91="+",IF(I91>$N$1,"0",IF(N91="+",VALUE($N$1)-VALUE(J91),$N$1-H91))+IF(G91=0,0,IF(AND(A91>=A92,H91>0,H92-H91),H92-H91)),IF(I91>$N$1,"0",IF(G91=0,0,IF(AND(A91>=A92,H91>0),H92-H91,IF(AND(A91<>A92,B91="",B92<>0),VALUE($N$1)-VALUE(H91),IF(A91<>A92,H91-J91,IF(N91="+",VALUE($N$1)-VALUE(J91),$N$1-H91))))))) -> 0 | P91: =IF(G91=0,0,IF(AND(A91<=A92,O91>0,H91<>0),Get_KeyRate(H92),Get_KeyRate($N$1))) -> 0.0425 | Q91: =IF(G91=0,0,IF(O91>0,ROUND((G91*O91*1/300*P91),2),0)) -> 0 | T91: =O91-#REF! -> 
A92: 74 | B92: 97763 | G92: 97763 | I92: 2021-01-31 | J92: 2021-02-01 | K92: =IF(AND(H92>J92,B92>0),H92-J92+1,0) -> 0 | L92: =IF(B92>0,ROUND((B92*K92*1/300*M92),2),0) -> 0 | M92: =IF(K92=0,0,Get_KeyRate(H92)) -> 0 | N92: + | O92: =IF(N92="+",IF(I92>$N$1,"0",IF(N92="+",VALUE($N$1)-VALUE(J92),$N$1-H92))+IF(G92=0,0,IF(AND(A92>=A93,H92>0,H93-H92),H93-H92)),IF(I92>$N$1,"0",IF(G92=0,0,IF(AND(A92>=A93,H92>0),H93-H92,IF(AND(A92<>A93,B92="",B93<>0),VALUE($N$1)-VALUE(H92),IF(A92<>A93,H92-J92,IF(N92="+",VALUE($N$1)-VALUE(J92),$N$1-H92))))))) -> 0 | P92: =IF(G92=0,0,IF(AND(A92<=A93,O92>0,H92<>0),Get_KeyRate(H93),Get_KeyRate($N$1))) -> 0.0425 | Q92: =IF(G92=0,0,IF(O92>0,ROUND((G92*O92*1/300*P92),2),0)) -> 0 | T92: =O92-#REF! -> 
A93: 75 | B93: 282390 | G93: 282390 | I93: 2021-01-31 | J93: 2021-02-01 | K93: =IF(AND(H93>J93,B93>0),H93-J93+1,0) -> 0 | L93: =IF(B93>0,ROUND((B93*K93*1/300*M93),2),0) -> 0 | M93: =IF(K93=0,0,Get_KeyRate(H93)) -> 0 | N93: + | O93: =IF(N93="+",IF(I93>$N$1,"0",IF(N93="+",VALUE($N$1)-VALUE(J93),$N$1-H93))+IF(G93=0,0,IF(AND(A93>=A94,H93>0,H94-H93),H94-H93)),IF(I93>$N$1,"0",IF(G93=0,0,IF(AND(A93>=A94,H93>0),H94-H93,IF(AND(A93<>A94,B93="",B94<>0),VALUE($N$1)-VALUE(H93),IF(A93<>A94,H93-J93,IF(N93="+",VALUE($N$1)-VALUE(J93),$N$1-H93))))))) -> 0 | P93: =IF(G93=0,0,IF(AND(A93<=A94,O93>0,H93<>0),Get_KeyRate(H94),Get_KeyRate($N$1))) -> 0.0425 | Q93: =IF(G93=0,0,IF(O93>0,ROUND((G93*O93*1/300*P93),2),0)) -> 0 | T93: =O93-#REF! -> 
A94: 76 | B94: 369078 | G94: 369078 | I94: 2021-01-31 | J94: 2021-02-01 | K94: =IF(AND(H94>J94,B94>0),H94-J94+1,0) -> 0 | L94: =IF(B94>0,ROUND((B94*K94*1/300*M94),2),0) -> 0 | M94: =IF(K94=0,0,Get_KeyRate(H94)) -> 0 | N94: + | O94: =IF(N94="+",IF(I94>$N$1,"0",IF(N94="+",VALUE($N$1)-VALUE(J94),$N$1-H94))+IF(G94=0,0,IF(AND(A94>=A95,H94>0,H95-H94),H95-H94)),IF(I94>$N$1,"0",IF(G94=0,0,IF(AND(A94>=A95,H94>0),H95-H94,IF(AND(A94<>A95,B94="",B95<>0),VALUE($N$1)-VALUE(H94),IF(A94<>A95,H94-J94,IF(N94="+",VALUE($N$1)-VALUE(J94),$N$1-H94))))))) -> 0 | P94: =IF(G94=0,0,IF(AND(A94<=A95,O94>0,H94<>0),Get_KeyRate(H95),Get_KeyRate($N$1))) -> 0.0425 | Q94: =IF(G94=0,0,IF(O94>0,ROUND((G94*O94*1/300*P94),2),0)) -> 0 | T94: =O94-#REF! -> 
A95: 77 | B95: 58822 | G95: 58822 | I95: 2021-01-31 | J95: 2021-02-01 | K95: =IF(AND(H95>J95,B95>0),H95-J95+1,0) -> 0 | L95: =IF(B95>0,ROUND((B95*K95*1/300*M95),2),0) -> 0 | M95: =IF(K95=0,0,Get_KeyRate(H95)) -> 0 | N95: + | O95: =IF(N95="+",IF(I95>$N$1,"0",IF(N95="+",VALUE($N$1)-VALUE(J95),$N$1-H95))+IF(G95=0,0,IF(AND(A95>=A96,H95>0,H96-H95),H96-H95)),IF(I95>$N$1,"0",IF(G95=0,0,IF(AND(A95>=A96,H95>0),H96-H95,IF(AND(A95<>A96,B95="",B96<>0),VALUE($N$1)-VALUE(H95),IF(A95<>A96,H95-J95,IF(N95="+",VALUE($N$1)-VALUE(J95),$N$1-H95))))))) -> 0 | P95: =IF(G95=0,0,IF(AND(A95<=A96,O95>0,H95<>0),Get_KeyRate(H96),Get_KeyRate($N$1))) -> 0.0425 | Q95: =IF(G95=0,0,IF(O95>0,ROUND((G95*O95*1/300*P95),2),0)) -> 0 | T95: =O95-#REF! -> 
A96: 78 | B96: 1579821 | G96: 1579821 | I96: 2021-01-31 | J96: 2021-02-01 | K96: =IF(AND(H96>J96,B96>0),H96-J96+1,0) -> 0 | L96: =IF(B96>0,ROUND((B96*K96*1/300*M96),2),0) -> 0 | M96: =IF(K96=0,0,Get_KeyRate(H96)) -> 0 | N96: + | O96: =IF(N96="+",IF(I96>$N$1,"0",IF(N96="+",VALUE($N$1)-VALUE(J96),$N$1-H96))+IF(G96=0,0,IF(AND(A96>=A97,H96>0,H97-H96),H97-H96)),IF(I96>$N$1,"0",IF(G96=0,0,IF(AND(A96>=A97,H96>0),H97-H96,IF(AND(A96<>A97,B96="",B97<>0),VALUE($N$1)-VALUE(H96),IF(A96<>A97,H96-J96,IF(N96="+",VALUE($N$1)-VALUE(J96),$N$1-H96))))))) -> 0 | P96: =IF(G96=0,0,IF(AND(A96<=A97,O96>0,H96<>0),Get_KeyRate(H97),Get_KeyRate($N$1))) -> 0.0425 | Q96: =IF(G96=0,0,IF(O96>0,ROUND((G96*O96*1/300*P96),2),0)) -> 0 | T96: =O96-#REF! -> 
A97: 79 | B97: 3461161 | C97: 79/1 | D97: от | E97: 2020-05-15 | F97: 2132190.82 | G97: 1328970.18 | H97: 2020-05-22 | I97: 2021-01-31 | J97: 2021-02-01 | K97: =IF(AND(H97>J97,B97>0),H97-J97+1,0) -> 0 | L97: =IF(B97>0,ROUND((B97*K97*1/300*M97),2),0) -> 0 | M97: =IF(K97=0,0,Get_KeyRate(H97)) -> 0 | O97: =IF(N97="+",IF(I97>$N$1,"0",IF(N97="+",VALUE($N$1)-VALUE(J97),$N$1-H97))+IF(G97=0,0,IF(AND(A97>=A98,H97>0,H98-H97),H98-H97)),IF(I97>$N$1,"0",IF(G97=0,0,IF(AND(A97>=A98,H97>0),H98-H97,IF(AND(A97<>A98,B97="",B98<>0),VALUE($N$1)-VALUE(H97),IF(A97<>A98,H97-J97,IF(N97="+",VALUE($N$1)-VALUE(J97),$N$1-H97))))))) -> 0 | P97: =IF(G97=0,0,IF(AND(A97<=A98,O97>0,H97<>0),Get_KeyRate(H98),Get_KeyRate($N$1))) -> 0.0425 | Q97: =IF(G97=0,0,IF(O97>0,ROUND((G97*O97*1/300*P97),2),0)) -> 0 | T97: =O97-#REF! -> 
A98: ИТОГО | B98: =_xlfn.AGGREGATE(9,5,B2:B97) -> 88618104 | F98: =_xlfn.AGGREGATE(9,5,F2:F97) -> 24473281.41 | Q98: =_xlfn.AGGREGATE(9,5,Q2:Q97) -> 413490.79

Sheet Вопрос
